Workbook

Sheet 汇总 (hidden)
C1: 出口厄瓜多尔物资清单
A2: 序号 | B2: 英文名称 | C2: 中文名称 | D2: 规格型号 | E2: 单位 | F2: 数量 | G2: 净重（吨） | H2: 毛重（吨） | I2: 件数 | J2: 长×宽×高（m） | K2: 体积（m3) | L2: 单价 | M2: 金额
A3: 1 | C3: 钢构件 | E3: 吨 | F3: 173.667 | G3: 173.667 | H3: 173.667 | J3: 见明细清单 | K3: 401.863 | L3: 8010 | M3: 1391072.67 | N3: =L3*F3 -> 1391072.67
A4: 2 | B4: steel structure type C | C4: 镀锌C型钢 | D4: C100*50*15*2mm | E4: 吨 | F4: 14.202 | G4: 14.202 | H4: 14.202 | I4: 7 | J4: 见明细清单 | K4: 13.742 | L4: 8010 | M4: 113758.02 | N4: 113758.02
A5: 3 | B5: Color Steel plate | C5: 彩钢瓦 | D5: 0.4mm海蓝色 | E5: 吨 | F5: 32.363 | G5: 32.363 | H5: 36.063 | I5: 4 | J5: 1.10*1.4*11 | K5: 67.76 | L5: 11925 | M5: 385893.00 | N5: 385928.775
A6: 4 | C6: 栓钉 | D6: φ16×90 | E6: 支 | F6: 13548 | G6: 1.92 | H6: 2.86 | I6: 1 | J6: 1*1*2 | K6: 2 | L6: 1.4 | M6: 18967.27 | N6: 18967.26689
A7: 5 | C7: 自攻钉 | D7: φ5.5×40，带橡胶防水垫圈 | E7: 支 | F7: 30435 | G7: 0.3 | L7: 0.1 | M7: 3043.50 | N7: 3043.502857
A8: 6 | C8: 拉铆钉 | D8: φ5×16 | E8: 支 | F8: 11573 | G8: 0.03 | L8: 0.1 | M8: 1157.29 | N8: 1157.286027
C9: 宿舍及食堂清单图纸 | D9: 宿舍及食堂清单图纸 | E9: 盒 | F9: 1 | G9: 5
C10: 合计 | E10: 元 | M10: 1913891.75 | N10: =SUM(N3:N8) -> 1913927.521

Sheet 清单 (hidden)
D1: 第 批出口厄瓜多尔物资清单
A2: 序号 | B2: 英文名称 | C2: 中文名称 | D2: 规格型号 | E2: 单位 | F2: 数量 | G2: 单价 | H2: 总金额 | I2: 箱号 | J2: 件数 | K2: 发货状态 | L2: 单重（kg) | M2: 净重（kg） | N2: 毛重 （kg） | O2: 长×宽×高（m） | P2: 体积（m3) | Q2: HS编码
A3: 1 | C3: 3.6m平台梁-1 | D3: 口250*150*4 | E3: 根 | F3: 28 | L3: 41.8 | M3: 1170.4 | O3: 1.9*0.25*0.15 | P3: 2.00 | R3: 0:品牌类型;1:出口享惠情况;2:织造方法：机制;3:种类：工作服;4:类别：男式;5:成分含量:全棉防静电;6:品牌：无;7:无;8:GTIN;9:CAS;
A4: 2 | C4: 3.6m平台梁-2 | D4: 口250*150*4 | E4: 根 | F4: 54 | L4: 100.9 | M4: 5448.6 | O4: 4.1*0.25*0.15 | P4: 8.30 | R4: 0:品牌类型;1:出口享惠情况;2:织造方法：针织;3:成分含量;100%棉4:品牌：无品牌;5:货号：无;6:GTIN;7:CAS;
A5: 3 | C5: 3.6m平台梁-3 | D5: 口100*100*3 | E5: 根 | F5: 2 | L5: 27.4 | M5: 54.8 | O5: 3*0.1*0.1 | P5: 0.06 | R5: 0:品牌类型|1:出口享惠情况|2:结构类型：深沟球轴承|3:品牌：哈轴|4:型号:6206|5:GTIN|6:CAS|7:其他
A6: 4 | C6: 3.6m平台梁-4 | D6: 口250*150*4 | E6: 根 | F6: 6 | L6: 71.4 | M6: 428.4 | O6: 2.9*0.25*0.15 | P6: 0.65
A7: 5 | C7: 3.6m平台梁-5 | D7: 口100*100*3 | E7: 根 | F7: 28 | L7: 17.8 | M7: 498.4 | O7: 1.95*0.1*0.1 | P7: 0.55
A8: 6 | C8: 3.6m平台梁-6 | D8: 口250*150*4 | E8: 根 | F8: 24 | L8: 38.2 | M8: 916.8 | O8: 1.55*0.25*0.15 | P8: 1.40
A9: 7 | C9: 3.6m平台梁-7 | D9: 口250*150*4 | E9: 根 | F9: 80 | L9: 104.6 | M9: 8368 | O9: 4.25*0.25*0.15 | P9: 12.75
A10: 8 | C10: 3.6m平台梁-8 | D10: 口250*150*4 | E10: 根 | F10: 20 | L10: 44.3 | M10: 886 | O10: 1.8*0.15*0.25 | P10: 1.35
A11: 9 | C11: 3.6m平台梁-9 | D11: 口100*100*3 | E11: 根 | F11: 144 | L11: 20.1 | M11: 2894.4 | O11: 2.2*0.1*0.1 | P11: 3.17
A12: 10 | C12: 3.6m平台梁-10 | D12: 口200*100*3 | E12: 根 | F12: 40 | L12: 29.8 | M12: 1192 | O12: 2.15*0.2*0.1 | P12: 1.72
A13: 11 | C13: 3.6m平台梁-11 | D13: 口100*100*3 | E13: 根 | F13: 112 | L13: 18.3 | M13: 2049.6 | O13: 2*0.1*0.1 | P13: 2.24
A14: 12 | C14: 3.6m平台梁-12 | D14: 口100*100*3 | E14: 根 | F14: 36 | L14: 19.6 | M14: 705.6 | O14: 2.15*0.1*0.1 | P14: 0.77
A15: 13 | C15: 3.6m平台梁-13 | D15: 口250*150*4 | E15: 根 | F15: 8 | L15: 75.1 | M15: 600.8 | O15: 3.05*0.25*0.15 | P15: 0.92
A16: 14 | C16: 3.6m平台梁-14 | D16: 口125*100*3 | E16: 根 | F16: 8 | L16: 33.5 | M16: 268 | O16: 3.25*0.125*0.1 | P16: 0.33
A17: 15 | C17: 3.6m平台梁-15 | D17: 口200*100*3 | E17: 根 | F17: 2 | L17: 40.8 | M17: 81.6 | O17: 2.95*0.2*0.1 | P17: 0.12
A18: 16 | C18: 3.6m平台梁-16 | D18: 口250*150*4 | E18: 根 | F18: 4 | L18: 72.6 | M18: 290.4 | O18: 2.95*0.25*0.15 | P18: 0.44
A19: 17 | C19: 3.6m平台梁-17 | D19: 口100*100*3 | E19: 根 | F19: 8 | L19: 27.9 | M19: 223.2 | O19: 3.05*0.1*0.1 | P19: 0.24
A20: 18 | C20: 3.6m平台梁-18 | D20: 口250*150*4 | E20: 根 | F20: 40 | L20: 40.6 | M20: 1624 | O20: 1.65*0.25*0.15 | P20: 2.48
A21: 19 | C21: 3.6m平台梁-19 | D21: 口250*150*4 | E21: 根 | F21: 40 | L21: 102.2 | M21: 4088 | O21: 4.15*0.25*0.15 | P21: 6.23
A22: 20 | C22: 6.66m平台梁-1 | D22: 口200*150*6 | E22: 根 | F22: 56 | L22: 54.1 | M22: 3029.6 | O22: 1.7*0.2*0.15 | P22: 2.86
A23: 21 | C23: 6.66m平台梁-2 | D23: 口200*150*6 | E23: 根 | F23: 32 | L23: 140.1 | M23: 4483.2 | O23: 4.4*0.2*0.15 | P23: 4.22
A24: 22 | C24: 6.66m平台梁-3 | D24: 口200*150*6 | E24: 根 | F24: 6 | L24: 95.5 | M24: 573 | O24: 3*0.2*0.15 | P24: 0.54
A25: 23 | C25: 6.66m平台梁-4 | D25: 口200*150*6 | E25: 根 | F25: 4 | L25: =455.3-L26 -> 264.5 | M25: =1821.2-M26 -> 1058 | O25: 8.3*0.2*0.15 | P25: 1.00
E26: 根 | F26: 4 | L26: =31.8*6 -> 190.8 | M26: =F26*L26 -> 763.2 | O26: 6*0.2*0.15 | P26: =6*0.2*0.15*4 -> 0.72
A27: 24 | C27: 6.66m平台梁-5 | D27: 口200*150*6 | E27: 根 | F27: 48 | L27: 138.5 | M27: 6648 | O27: 4.35*0.2*0.15 | P27: 6.26
A28: 25 | C28: 6.66m平台梁-6 | D28: 口200*150*6 | E28: 根 | F28: 16 | L28: 97.1 | M28: 1553.6 | O28: 3.05*0.2*0.15 | P28: 1.46
A29: 26 | C29: 窗梁-1 | D29: 口150*2 | E29: 根 | F29: 4 | L29: 27 | M29: 108 | O29: 2.9*0.15*0.15 | P29: 0.26
A30: 27 | C30: 窗梁-2 | D30: 口150*2 | E30: 根 | F30: 80 | L30: 17.2 | M30: 1376 | O30: 1.85*0.15*0.15 | P30: 3.33
A31: 28 | C31: 窗梁-3 | D31: 口150*2 | E31: 根 | F31: 8 | L31: 28.3 | M31: 226.4 | O31: 3.05*0.15*0.15 | P31: 0.55
A32: 29 | C32: 钢架-1 | E32: 榀 | F32: 12 | L32: 556.51 | M32: 6678.12 | O32: 11.3*2.207*0.1 | P32: =50.4877734-P33 -> 50.15
E33: 榀 | F33: 24 | L33: =13.85*0.7 -> 9.695 | M33: =L33*F33 -> 232.68 | O33: 0.7*0.2*0.1 | P33: =1.4*0.2*0.1*12 -> 0.336
A34: 30 | C34: 钢架-2 | E34: 榀 | F34: 16 | L34: 191 | M34: 3056 | O34: 6.864*1.553*0.1 | P34: 17.06
A35: 31 | C35: 钢架-3 | E35: 榀 | F35: 8 | L35: 550.9 | M35: 4407.2 | O35: 10.984*2.16*0.1 | P35: 28.47 | R35: =Q35*F35 -> 0
A36: 32 | C36: 钢架-4 | E36: 榀 | F36: 2 | L36: 374.3 | M36: 748.6 | O36: 8.459*2.21*0.1 | P36: 5.61
A37: 33 | C37: 钢架-5 | E37: 榀 | F37: 4 | L37: 303.2 | M37: 1212.8 | O37: 10.166*2.213*0.1 | P37: 13.50
A38: 34 | C38: 钢架-6 | E38: 榀 | F38: 2 | L38: =575.9-L39 -> 556.51 | M38: =L38*F38 -> 1113.02 | O38: 11.3*2.210*0.1 | P38: =8.426067-P39 -> 8.37
E39: 榀 | F39: 2 | L39: =13.85*1.4 -> 19.39 | M39: =L39*F39 -> 38.78 | O39: 1.4*0.2*0.1 | P39: =1.4*0.2*0.1*2 -> 0.056
A40: 35 | C40: 钢梯-1 | E40: 副 | F40: 4 | L40: 289.1 | M40: 1156.4 | O40: 2.617*1.425*0.25 | P40: 3.09
A41: 36 | C41: 钢梯-2 | E41: 副 | F41: 4 | L41: 370.9 | M41: 1483.6 | O41: 3.203*1.425*0.25 | P41: 4.56
A42: 37 | C42: 钢梯-3 | E42: 副 | F42: 2 | L42: 370.8 | M42: 741.6 | O42: 3.203*1.425*0.25 | P42: 2.28
A43: 38 | C43: 钢梯-4 | E43: 副 | F43: 2 | L43: 287.9 | M43: 575.8 | O43: 2.617*1.425*0.25 | P43: 1.86
A44: 39 | C44: 钢梯-5 | E44: 副 | F44: 2 | L44: 293.7 | M44: 587.4 | O44: 2.278*1.910*0.25 | P44: 2.18
A45: 40 | C45: 钢梯平台梁-1 | D45: 口200*100*3 | E45: 根 | F45: 12 | L45: 19.4 | M45: 232.8 | O45: 1.4*0.2*0.1 | P45: 0.34
A46: 41 | C46: 钢梯平台梁-2 | D46: 口250*150*4 | E46: 根 | F46: 4 | L46: 72.6 | M46: 290.4 | O46: 2.95*0.25*0.15 | P46: 0.44
A47: 42 | C47: 钢梯平台梁-3 | D47: 口200*100*3 | E47: 根 | F47: 2 | L47: 20.8 | M47: 41.6 | O47: 1.5*0.2*0.1 | P47: 0.06
A48: 43 | C48: 钢梯平台梁-4 | D48: 口250*150*4 | E48: 根 | F48: 2 | L48: 71.4 | M48: 142.8 | O48: 2.9*0.25*0.15 | P48: 0.22
A49: 44 | C49: 钢梯平台梁-5 | D49: 口250*150*4 | E49: 根 | F49: 2 | L49: 75.1 | M49: 150.2 | O49: 3.05*0.25*0.15 | P49: 0.23
A50: 45 | C50: 钢梯平台梁-6 | D50: 口200*100*3 | E50: 根 | F50: 2 | L50: 20.5 | M50: 41 | O50: 1.479*0.2*0.1 | P50: 0.06
A51: 46 | C51: 钢梯平台梁-7 | D51: 口250*150*4 | E51: 根 | F51: 2 | L51: 76.3 | M51: 152.6 | O51: 3.1*0.25*0.15 | P51: 0.23
A52: 47 | C52: 钢梯平台梁-8 | D52: 口200*100*3 | E52: 根 | F52: 2 | L52: 21.5 | M52: 43 | O52: 1.55*0.2*0.1 | P52: 0.06
A53: 48 | C53: 钢梯平台梁-9 | D53: 口250*150*4 | E53: 根 | F53: 2 | L53: 73.9 | M53: 147.8 | O53: 3*0.25*0.15 | P53: 0.23
A54: 49 | C54: 钢柱-1 | E54: 根 | F54: 12 | L54: 60.1 | M54: 721.2 | O54: 1.514*0.35*0.35 | P54: 2.23
A55: 50 | C55: 钢柱-2 | E55: 根 | F55: 174 | L55: 380.4 | M55: =L55*F55 -> 66189.6 | O55: 6.1*0.4*0.4 | P55: 169.80
A56: 51 | C56: 屋面梁-1 | D56: 口200*100*3 | E56: 根 | F56: 2 | L56: 42.2 | M56: 84.4 | O56: 3.05*0.2*0.1 | P56: 0.12
A57: 52 | C57: 屋面梁-2 | D57: 口200*100*3 | E57: 根 | F57: 4 | L57: 56.7 | M57: 226.8 | O57: 4.091*0.2*0.1 | P57: 0.33
A58: 53 | C58: 屋面梁-3 | D58: 口200*100*3 | E58: 根 | F58: 16 | L58: 10.5 | M58: 168 | O58: 0.771*0.2*0.1 | P58: 0.25
A59: 54 | C59: 屋面梁-4 | D59: 口200*100*3 | E59: 根 | F59: 16 | L59: 10.5 | M59: 168 | O59: 0.771*0.2*0.1 | P59: 0.25
A60: 55 | C60: 屋面梁-5 | D60: 口200*100*3 | E60: 根 | F60: 2 | L60: 56.1 | M60: 112.2 | O60: 4.405*0.2*0.1 | P60: 0.18
A61: 56 | C61: 屋面梁-6 | D61: 口200*100*3 | E61: 根 | F61: 32 | L61: 86.6 | M61: 2771.2 | O61: 6.268*0.2*0.1 | P61: 4.01
A62: 57 | C62: 屋面梁-7 | D62: 口200*100*3 | E62: 根 | F62: 16 | L62: 82.3 | M62: 1316.8 | O62: 6.016*0.2*0.1 | P62: 1.93
A63: 58 | C63: 屋面梁-8 | D63: 口200*100*3 | E63: 根 | F63: 16 | L63: 82.3 | M63: 1316.8 | O63: 6.016*0.2*0.1 | P63: 1.93
A64: 59 | C64: 屋面梁-9 | D64: 口200*100*3 | E64: 根 | F64: 2 | L64: 12.5 | M64: 25 | O64: 0.895*0.2*0.1 | P64: 0.04
A65: 60 | C65: 屋面梁-10 | D65: 口200*100*3 | E65: 根 | F65: 2 | L65: 22 | M65: 44 | O65: 1.631*0.2*0.1 | P65: 0.07
A66: 61 | C66: 屋面梁-11 | D66: 口200*100*3 | E66: 根 | F66: 4 | L66: 120.1 | M66: 480.4 | O66: 8.745*0.2*0.1 | P66: 0.70
A67: 62 | C67: 屋面梁-12 | D67: 口200*100*3 | E67: 根 | F67: 2 | L67: =198-L68 -> 115.2 | M67: =396-M68 -> 230.4 | O67: 8.3*0.2*0.1 | P67: 0.45
E68: 根 | F68: 2 | L68: =13.8*6 -> 82.8 | M68: =L68*F68 -> 165.6 | O68: 6*0.2*0.1 | P68: =6*0.2*0.1 -> 0.12
A69: 63 | C69: 屋面梁-13 | D69: 口200*100*3 | E69: 根 | F69: 8 | L69: 20.9 | M69: 167.2 | O69: 1.59*0.2*0.1 | P69: 0.25
A70: 64 | C70: 屋面梁-14 | D70: 口200*100*3 | E70: 根 | F70: 6 | L70: 23.3 | M70: 139.8 | O70: 1.763*0.2*0.1 | P70: 0.21
A71: 65 | C71: 屋面梁-15 | D71: 口200*100*3 | E71: 根 | F71: 4 | L71: 7.9 | M71: 31.6 | O71: 0.583*0.2*0.1 | P71: 0.05
A72: 66 | C72: 屋面梁-16 | D72: 口200*100*3 | E72: 根 | F72: 4 | L72: 7.9 | M72: 31.6 | O72: 0.583*0.2*0.1 | P72: 0.05
A73: 67 | C73: 屋面梁-17 | D73: 口200*100*3 | E73: 根 | F73: 8 | L73: 123.8 | M73: 990.4 | O73: 8.963*0.2*0.1 | P73: 1.43
A74: 68 | C74: 屋面梁-18 | D74: 口200*100*3 | E74: 根 | F74: 4 | L74: 120.1 | M74: 480.4 | O74: 8.745*0.2*0.1 | P74: 0.70
A75: 69 | C75: 圆管 | D75: φ50*3，L=1167 | E75: 根 | F75: 52 | L75: 3.95 | M75: 205.4 | O75: 1.167*0.05*0.05 | P75: 0.52
A76: 70 | C76: 圆管 | D76: φ50*3，L=6000 | E76: 根 | F76: 9 | L76: 20.2 | M76: 181.8 | O76: 6*0.05*0.05 | P76: 0.18
A77: 71 | C77: 圆管 | D77: φ30*3，L=6000 | E77: 根 | F77: 13 | L77: 11.4 | M77: 148.2 | O77: 6*0.03*0.03 | P77: 0.01
A78: 72 | C78: 扁铁 | D78: 3*100,L=6000 | E78: 根 | F78: 8 | L78: 14.1 | M78: 112.8 | O78: 6*0.1*0.003 | P78: 0.01
A79: 73 | C79: 天沟-1 | E79: 件 | F79: 4 | L79: 18.3 | M79: 73.2 | O79: 8.8*0.2*0.12 | P79: 0.84
A80: 74 | C80: 天沟-2 | E80: 件 | F80: 4 | L80: 18.3 | M80: 73.2 | O80: 8.8*0.2*0.12 | P80: 0.84
A81: 75 | C81: 天沟-3 | E81: 件 | F81: 32 | L81: 12.7 | M81: 406.4 | O81: 6.1*0.2*0.12 | P81: 4.68
A82: 76 | C82: 楼层板-1 | D82: L=1850 | E82: 件 | F82: 48 | L82: 14.16 | M82: =L82*F82 -> 679.7 | O82: 1.85*1.025*0.051 | P82: 0.26
A83: 77 | C83: 楼层板-2 | D83: L=2050 | E83: 件 | F83: 12 | L83: 15.69 | M83: 188.3 | O83: 2.05*1.025*0.051 | P83: 0.24
A84: 78 | C84: 楼层板-3 | D84: L=5350 | E84: 件 | F84: 160 | L84: 40.95 | M84: 6551.6 | O84: 5.35*1.025*0.051 | P84: 1.24
A85: 79 | C85: 楼层板-4 | D85: L=7150 | E85: 件 | F85: 230 | L85: 54.72 | M85: 12586.6 | O85: 7.15*1.025*0.051 | P85: 1.03
A86: 80 | C86: 楼层板-5 | D86: L=6400 | E86: 件 | F86: 28 | L86: 48.98 | M86: 1371.6 | O86: 6.40*1.025*0.051 | P86: 0.41
A87: 81 | C87: 楼层板-6 | D87: L=1875 | E87: 件 | F87: 24 | L87: 14.35 | M87: 344.4 | O87: 1.87*1.025*0.051 | P87: 0.23

Sheet 汇总表
C1: 出口厄瓜多尔物资清单
A2: 序号 | B2: 英文名称 | C2: 中文名称 | D2: 规格型号 | E2: 单位 | F2: 构件数量（件） | G2: 净重（公斤） | H2: 毛重（公斤） | I2: 件数 | J2: 长×宽×高（m） | K2: 体积（m3)
A3: 1 | C3: 钢构件 | E3: 公斤 | F3: 2148 | G3: 170811 | H3: 170811 | I3: 按实际打包 | J3: 见明细清单 | K3: 514.78
A4: 2 | C4: 钢构件 | E4: 公斤 | F4: 5859 | G4: 73730 | H4: 737309 | I4: 按实际打包 | J4: 见明细清单 | K4: 2051.6
A5: 3 | C5: 钢构件 | E5: 公斤 | F5: 1958 | G5: 75300 | H5: 75300 | I5: 按实际打包 | J5: 见明细清单 | K5: 102.3
C6: 合计 | H6: =SUM(H3:H5) -> 983420 | K6: =SUM(K3:K5) -> 2668.71

Sheet 磨矿连廊
D1: 第 批出口厄瓜多尔磨矿车间钢平台物资清单
A2: 序号 | B2: 英文名称 | C2: 中文名称 | D2: 规格型号 | E2: 单位 | F2: 单价 | G2: 总金额 | H2: 箱号 | I2: 件数 | J2: 发货状态 | K2: 数量 | L2: 单重（kg) | M2: 净重（kg） | N2: 毛重 （kg） | O2: 长（mm） | P2: 宽（mm） | Q2: 高（mm） | R2: 长×宽×高（m） | S2: 体积（m3) | T2: HS编码
A3: 1 | B3: 332 | C3: 垫片 | D3: PL20*60 | K3: 144 | L3: 0.57 | M3: =L3*K3 -> 82.08 | O3: 60 | P3: 60 | Q3: 20 | R3: 0.06*0.06*0.02 | S3: =O3*P3*Q3/1000000000*K3 -> 0.010
A4: 2 | B4: 341 | C4: 连廊焊板1 | D4: PL14*144 | K4: 4 | L4: 8.63 | M4: =L4*K4 -> 34.52 | O4: 548 | P4: 144 | Q4: =MID(D4,3,2) -> 14 | R4: 0.548*0.144*0.014 | S4: =O4*P4*Q4/1000000000*K4 -> 0.004
A5: 3 | B5: 342 | C5: 连廊焊板2 | D5: PL16*144 | K5: 4 | L5: 9.86 | M5: 39.44 | O5: 548 | P5: 144 | Q5: =MID(D5,3,2) -> 16 | R5: 0.548*0.144*0.016 | S5: 0.005
A6: 4 | B6: 343 | C6: 连廊焊板3 | D6: PL26*144 | K6: 8 | L6: 16.02 | M6: 128.16 | O6: 548 | P6: 144 | Q6: 26 | R6: 0.548*0.144*0.026 | S6: 0.016
A7: 5 | B7: 344 | C7: 连廊焊板4 | D7: PL4*300 | K7: 130 | L7: 0.38 | M7: 49.4 | O7: 40 | P7: 300 | Q7: =MID(D7,3,1) -> 4 | R7: 0.04*0.3*0.04 | S7: 0.006
A8: 6 | B8: 345 | C8: 连廊焊板5 | D8: PL4*400 | K8: 16 | L8: 0.50 | M8: 8 | O8: 40 | P8: 400 | Q8: =MID(D8,3,1) -> 4 | R8: 0.04*0.4*0.04 | S8: 0.001
A9: 7 | B9: 346 | C9: 连廊焊板6 | D9: PL4*200 | K9: 14 | L9: 0.25 | M9: 3.5 | O9: 40 | P9: 200 | Q9: =MID(D9,3,1) -> 4 | R9: 0.04*0.2*0.04 | S9: 0.000
A10: 8 | B10: 347 | C10: 连廊柱板1 | D10: PL20*645 | K10: 16 | L10: 29.16 | M10: 466.56 | O10: 288 | P10: 645 | Q10: 20 | R10: 0.288*0.645*0.02 | S10: 0.059
A11: 9 | B11: 348 | C11: 连廊柱板2 | D11: PL20*645 | K11: 64 | L11: 9.11 | M11: 583.04 | O11: 90 | P11: 645 | Q11: 20 | R11: 0.09*0.645*0.02 | S11: 0.074
A12: 10 | B12: 349 | C12: 连廊柱板3 | D12: PL20*144 | K12: 24 | L12: 12.33 | M12: 295.92 | O12: 548 | P12: 144 | Q12: 20 | R12: 0.548*0.144*0.02 | S12: 0.038
A13: 11 | B13: 350 | C13: 连廊柱板4 | D13: PL12*259 | K13: 2 | L13: 17.55 | M13: 35.1 | O13: 768 | P13: 259 | Q13: 12 | R13: 0.768*0.259*0.012 | S13: 0.005
A14: 12 | B14: 351 | C14: 连廊柱板5 | D14: PL12*259 | K14: 4 | L14: 8.39 | M14: 33.56 | O14: 358 | P14: 259 | Q14: 12 | R14: 0.358*0.259*0.012 | S14: 0.004
A15: 13 | B15: 352 | C15: 连廊柱板6 | D15: PL12*259 | K15: 2 | L15: 9.63 | M15: 19.26 | O15: 422 | P15: 259 | Q15: 12 | R15: 0.422*0.259*0.012 | S15: 0.003
A16: 14 | B16: 353 | C16: 连廊柱板7 | D16: PL12*259 | K16: 2 | L16: 9.87 | M16: 19.74 | O16: 453 | P16: 259 | Q16: 12 | R16: 0.453*0.259*0.012 | S16: 0.003
A17: 15 | B17: 354 | C17: 连廊柱板8 | D17: PL12*259 | K17: 6 | L17: 17.58 | M17: 105.48 | O17: 748 | P17: 259 | Q17: 12 | R17: 0.748*0.259*0.012 | S17: 0.014
A18: 16 | B18: 355 | C18: 连廊柱板9 | D18: PL14*144 | K18: 2 | L18: 8.63 | M18: 17.26 | O18: 548 | P18: 144 | Q18: 14 | R18: 0.548*0.144*0.014 | S18: 0.002
A19: 17 | B19: 356 | C19: 连廊柱板10 | D19: PL16*144 | K19: 2 | L19: 9.86 | M19: 19.72 | O19: 548 | P19: 144 | Q19: 16 | R19: 0.548*0.144*0.016 | S19: 0.003
A20: 18 | B20: 357 | C20: 连廊柱板11 | D20: PL26*144 | K20: 4 | L20: 16.02 | M20: 64.08 | O20: 548 | P20: 144 | Q20: 26 | R20: 0.548*0.144*0.026 | S20: 0.008
A21: 19 | B21: 358 | C21: 连廊柱板-1 | D21: PL12*510 | K21: 16 | L21: 5.52 | M21: 88.32 | O21: 115 | P21: 510 | Q21: 12 | R21: 0.115*0.510*0.12 | S21: 0.011
A22: 20 | B22: 359 | C22: 连梁柱板1 | D22: PL12*115 | K22: 2 | L22: 4.77 | M22: 9.54 | O22: 454 | P22: 115 | Q22: 12 | R22: 0.454*0.115*0.012 | S22: 0.001
A23: 21 | B23: 360 | C23: 一期平台板2 | D23: PL40*400 | K23: 2 | L23: 37.68 | M23: 75.36 | O23: 300 | P23: 400 | Q23: 40 | R23: 0.3*0.4*0.04 | S23: 0.010
A24: 22 | B24: 361 | C24: 一期平台板3 | D24: PL40*150 | K24: 4 | L24: 7.07 | M24: 28.28 | O24: 150 | P24: 150 | Q24: 40 | R24: 0.15*0.15*0.04 | S24: 0.004
A25: 23 | B25: 362 | C25: 一期平台板4 | D25: PL12*250 | K25: 1 | L25: 10.39 | M25: 10.39 | O25: 452 | P25: 250 | Q25: 12 | R25: 0.452*0.250*0.012 | S25: 0.001
A26: 24 | B26: 363 | C26: 一期平台板5 | D26: PL12*430 | K26: 1 | L26: 4.25 | M26: 4.25 | O26: 105 | P26: 430 | Q26: 12 | R26: 0.105*0.430*0.012 | S26: 0.001
A27: 25 | B27: 364 | C27: 一期平台板6 | D27: PL10*145 | K27: 12 | L27: 4.04 | M27: 48.48 | O27: 358 | P27: 145 | Q27: 10 | R27: 0.358*0.145*0.01 | S27: 0.006
A28: 26 | B28: 365 | C28: 一期平台板7 | D28: PL10*145 | K28: 4 | L28: 5.10 | M28: 20.4 | O28: 452 | P28: 145 | Q28: 10 | R28: 0.452*0.145*0.01 | S28: 0.003
A29: 27 | B29: 366 | C29: 一期平台板8 | D29: PL10*197 | K29: 4 | L29: 3.64 | M29: 14.56 | O29: 339 | P29: 197 | Q29: 10 | R29: 0.339*0.197*0.01 | S29: 0.003
A30: 28 | B30: 367 | C30: 一期平台板9 | D30: PL10*250 | K30: 8 | L30: 7.65 | M30: 61.2 | O30: 452 | P30: 250 | Q30: 10 | R30: 0.452*0.25*0.01 | S30: 0.009
A31: 29 | B31: 368 | C31: 一期平台板10 | D31: PL8*145 | K31: 2 | L31: 3.22 | M31: 6.44 | O31: 358 | P31: 145 | Q31: =MID(D31,3,1) -> 8 | R31: 0.358*0.145*0.08 | S31: 0.001
A32: 30 | B32: 369 | C32: 一期平台板11 | D32: PL8*145 | K32: 1 | L32: 4.95 | M32: 4.95 | O32: 548 | P32: 145 | Q32: 8 | R32: 0.548*0.145*0.08 | S32: 0.001
A33: 31 | B33: 370 | C33: 一期平台板12 | D33: PL8*250 | K33: 2 | L33: 5.21 | M33: 10.42 | O33: 358 | P33: 250 | Q33: 8 | R33: 0.358*0.025*0.08 | S33: 0.001
A34: 32 | B34: 371 | C34: 一期平台板13 | D34: PL8*249 | K34: 1 | L34: 6.91 | M34: 6.91 | O34: 548 | P34: 249 | Q34: 8 | R34: 0.548*0.249*0.08 | S34: 0.001
A35: 33 | B35: 372 | C35: 一期平台板14 | D35: L75*6 | K35: 3 | L35: 0.55 | M35: 1.65 | O35: 80 | P35: 75 | Q35: 5 | R35: 0.08*0.075*0.005 | S35: 0.000
A36: 34 | B36: L9.5MPTL-1 | C36: 连廊9.5m平台梁-1 | D36: HM390*300*10*16 | K36: 1 | L36: 398.38 | M36: 398.38 | O36: 2470 | P36: 405 | Q36: 430 | R36: 2.47*0.405*0.43 | S36: =O36*P36*Q36/1000000000*K36 -> 0.430
A37: 35 | B37: L9.5MPTL-2 | C37: 连廊9.5m平台梁-2 | D37: HM390*300*10*16 | K37: 1 | L37: 395.40 | M37: 395.40 | O37: 2470 | P37: 405 | Q37: 430 | R37: 2.47*0.405*0.43 | S37: 0.430
A38: 36 | B38: L9.5MPTL-3 | C38: 连廊9.5m平台梁-3 | D38: HM488*300*11*18 | K38: 1 | L38: 608.88 | M38: 608.88 | O38: 4465 | P38: 405 | Q38: 488 | R38: 4.465*0.405*0.488 | S38: 0.882
A39: 37 | B39: L9.5MPTL-4 | C39: 连廊9.5m平台梁-4 | D39: HM390*300*10*16 | K39: 1 | L39: 173.68 | M39: 173.68 | O39: 1020 | P39: 300 | Q39: 430 | R39: 1.02*0.3*0.43 | S39: 0.132
A40: 38 | B40: L9.5MPTL-5 | C40: 连廊9.5m平台梁-5 | D40: HM390*300*10*16 | K40: 1 | L40: 182.14 | M40: 182.14 | O40: 1020 | P40: 300 | Q40: 430 | R40: 1.02*0.3*0.43 | S40: 0.132
A41: 39 | B41: L9.5MPTL-6 | C41: 连廊9.5m平台梁-6 | D41: HN350*175*7*11 | K41: 1 | L41: 76.84 | M41: 76.84 | O41: 1556 | P41: 175 | Q41: 350 | R41: 1.556*0.175*0.35 | S41: 0.095
A42: 40 | B42: L9.5MPTL-7 | C42: 连廊9.5m平台梁-7 | D42: HN350*175*7*11 | K42: 1 | L42: 15.58 | M42: 15.58 | O42: 316 | P42: 175 | Q42: 350 | R42: 0.316*0.175*0.35 | S42: 0.019
A43: 41 | B43: L9.5MPTL-8 | C43: 连廊9.5m平台梁-8 | D43: HN350*175*7*11 | K43: 1 | L43: 65.19 | M43: 65.19 | O43: 1320 | P43: 175 | Q43: 350 | R43: 1.320*0.175*0.350 | S43: 0.081
A44: 42 | B44: L9.5MPTL-9 | C44: 连廊9.5m平台梁-9 | D44: HM390*300*10*16 | K44: 1 | L44: 363.42 | M44: 363.42 | O44: 2470 | P44: 300 | Q44: 430 | R44: 2.470*0.3*0.43 | S44: 0.319
A45: 43 | B45: L9.5MPTL-10 | C45: 连廊9.5m平台梁-10 | D45: HM390*300*10*16 | K45: 1 | L45: 362.32 | M45: 362.32 | O45: 2470 | P45: 300 | Q45: 430 | R45: 2.470*0.3*0.43 | S45: 0.319
A46: 44 | B46: LL折边-1 | C46: 连廊折边-1 | D46: PL1.5*3500 | K46: 28 | L46: 9.89 | M46: 276.81 | O46: 240 | P46: 3500 | Q46: 1.5 | R46: 0.24*3.5*0.0015 | S46: 0.035
A47: 45 | B47: LL折边-2 | C47: 连廊折边-2 | D47: PL1.5*7800 | K47: 2 | L47: 22.03 | M47: 44.06 | O47: 240 | P47: 7800 | Q47: 1.5 | R47: 0.24*7.8*0.0015 | S47: 0.006
A48: 46 | B48: LL折边-3 | C48: 连廊折边-3 | D48: PL1.5*6300 | K48: 2 | L48: 17.79 | M48: 35.59 | O48: 240 | P48: 6300 | Q48: 1.5 | R48: 0.24*6.3*0.0015 | S48: 0.005
A49: 47 | B49: LL-花纹板-1 | C49: 连廊花纹板-1 | D49: PL6*2428 | K49: 1 | L49: 808.35 | M49: 808.35 | O49: 6280 | P49: 2428 | Q49: 66 | R49: 6.28*2.428*0.066 | S49: 1.006
A50: 48 | B50: LL-花纹板-2 | C50: 连廊花纹板-2 | D50: PL6*2058 | K50: 1 | L50: 684.08 | M50: 684.08 | O50: 6280 | P50: =MID(D50,5,4) -> 2058 | Q50: 66 | R50: 6.28*2.058*0.066 | S50: 0.853
A51: 49 | B51: LL-花纹板-3 | C51: 连廊花纹板-3 | D51: PL6*1490 | K51: 1 | L51: 491.52 | M51: 491.52 | O51: 6280 | P51: =MID(D51,5,4) -> 1490 | Q51: 66 | R51: 6.28*1.49*0.066 | S51: 0.618
A52: 50 | B52: LL-花纹板-4 | C52: 连廊花纹板-4 | D52: PL6*1490 | K52: 7 | L52: 582.03 | M52: 4074.18 | O52: 7370 | P52: 1490 | Q52: 66 | R52: 7.370*1.49*0.066 | S52: 5.073
A53: 51 | B53: LL-花纹板-5 | C53: 连廊花纹板-5 | D53: PL6*1190 | K53: 1 | L53: 462.85 | M53: 462.85 | O53: 7370 | P53: 1190 | Q53: 66 | R53: 7.370*1.19*0.066 | S53: 0.579
A54: 52 | B54: LL-花纹板-6 | C54: 连廊花纹板-6 | D54: PL6*1216 | K54: 1 | L54: 471.10 | M54: 471.10 | O54: 7370 | P54: 1216 | Q54: 66 | R54: 7.370*1.216*0.066 | S54: 0.591
A55: 53 | B55: LL-花纹板-7 | C55: 连廊花纹板-7 | D55: PL6*1003 | K55: 1 | L55: 386.99 | M55: 386.99 | O55: 7370 | P55: 1003 | Q55: 66 | R55: 7.370*1.003*0.066 | S55: 0.488
A56: 54 | B56: LL-花纹板-8 | C56: 连廊花纹板-8 | D56: PL6*1170 | K56: 1 | L56: 452.85 | M56: 452.85 | O56: 7370 | P56: 1170 | Q56: 66 | R56: 7.370*1.17*0.066 | S56: 0.569
A57: 55 | B57: LL-花纹板-9 | C57: 连廊花纹板-9 | D57: PL6*1190 | K57: 1 | L57: 248.91 | M57: 248.91 | O57: 4005 | P57: 1190 | Q57: 66 | R57: 4.005*1.190*0.066 | S57: 0.315
A58: 56 | B58: LL-花纹板-10 | C58: 连廊花纹板-10 | D58: PL6*1190 | K58: 1 | L58: 118.15 | M58: 118.15 | O58: 1915 | P58: 1190 | Q58: 66 | R58: 1.915*1.190*0.066 | S58: 0.150
A59: 57 | B59: LL-花纹板-11 | C59: 连廊花纹板-11 | D59: PL6*1190 | K59: 1 | L59: 87.62 | M59: 87.62 | O59: 1430 | P59: 1190 | Q59: 66 | R59: 1.430*1.190*0.066 | S59: 0.112
A60: 58 | B60: LL-花纹板-12 | C60: 连廊花纹板-12 | D60: PL6*1804 | K60: 1 | L60: 391.68 | M60: 391.68 | O60: 4146 | P60: 1804 | Q60: 66 | R60: 4.146*1.804*0.066 | S60: 0.494
A61: 59 | B61: LL-花纹板-13 | C61: 连廊花纹板-13 | D61: PL6*1804 | K61: 2 | L61: 247.18 | M61: 494.35 | O61: 2636 | P61: 1804 | Q61: 66 | R61: 2.636*1.804*0.066 | S61: 0.628
A62: 60 | B62: LL-花纹板-14 | C62: 连廊花纹板-14 | D62: PL6*1804 | K62: 1 | L62: 179.96 | M62: 179.96 | O62: 1915 | P62: 1804 | Q62: 66 | R62: 1.915*1.804*0.066 | S62: 0.228
A63: 61 | B63: LL-花纹板-15 | C63: 连廊花纹板-15 | D63: PL6*1430 | K63: 1 | L63: 133.39 | M63: 133.39 | O63: 1804 | P63: 1430 | Q63: 66 | R63: 1.804*1.430*0.066 | S63: 0.170
A64: 62 | B64: LL-花纹板-16 | C64: 连廊花纹板-16 | D64: PL6*1425 | K64: 1 | L64: 184.65 | M64: 184.65 | O64: 2458 | P64: 1425 | Q64: 66 | R64: 2.458*1.425*0.066 | S64: 0.231
A65: 63 | B65: LL-花纹板-17 | C65: 连廊花纹板-17 | D65: PL6*1425 | K65: 1 | L65: 150.38 | M65: 150.38 | O65: 2005 | P65: 1425 | Q65: 66 | R65: 2.005*1.425*0.066 | S65: 0.189
A66: 64 | B66: LL-花纹板-18 | C66: 连廊花纹板-18 | D66: PL6*1280 | K66: 2 | L66: 168.85 | M66: 337.70 | O66: 2458 | P66: 1280 | Q66: 66 | R66: 2.458*1.280*0.066 | S66: 0.415
A67: 65 | B67: LL-花纹板-19 | C67: 连廊花纹板-19 | D67: PL6*1280 | K67: 1 | L67: 137.47 | M67: 137.47 | O67: 2005 | P67: 1280 | Q67: 66 | R67: 2.005*1.280*0.666 | S67: 0.169
A68: 66 | B68: LL-花纹板-20 | C68: 连廊花纹板-20 | D68: PL6*1430 | K68: 1 | L68: 188.87 | M68: 188.87 | O68: 2458 | P68: 1430 | Q68: 66 | R68: 2.458*1.430*0.066 | S68: 0.232
A69: 67 | B69: LL-花纹板-21 | C69: 连廊花纹板-21 | D69: PL6*1915 | K69: 1 | L69: 250.04 | M69: 250.04 | O69: 2458 | P69: 1915 | Q69: 66 | R69: 2.458*1.915*0.066 | S69: 0.311
A70: 68 | B70: LL-花纹板-22 | C70: 连廊花纹板-22 | D70: PL6*1915 | K70: 1 | L70: 203.60 | M70: 203.60 | O70: 2005 | P70: 1915 | Q70: 66 | R70: 2.005*1.915*0.066 | S70: 0.253
A71: 69 | B71: LL-花纹板-23 | C71: 连廊花纹板-23 | D71: PL6*1390 | K71: 1 | L71: 442.67 | M71: 442.67 | O71: 6025 | P71: 1390 | Q71: 66 | R71: 6.025*1.390*0.066 | S71: 0.553
A72: 70 | B72: LL-花纹板-24 | C72: 连廊花纹板-24 | D72: PL6*884 | K72: 1 | L72: 277.01 | M72: 277.01 | O72: 6025 | P72: =MID(D72,5,4) -> 884 | Q72: 66 | R72: 6.025*0.884*0.066 | S72: 0.352
A73: 71 | B73: LL-花纹板-25 | C73: 连廊花纹板-25 | D73: PL6*781 | K73: 1 | L73: 72.45 | M73: 72.45 | O73: 1804 | P73: 781 | Q73: 66 | R73: 1.804*0.781*0.066 | S73: 0.093
A74: 72 | B74: LL-花纹板-26 | C74: 连廊花纹板-26 | D74: PL6*748 | K74: 1 | L74: 154.28 | M74: 154.28 | O74: 4005 | P74: 748 | Q74: 66 | R74: 4.005*0.748*0.066 | S74: 0.198
A75: 73 | B75: LL-花纹板-27 | C75: 连廊花纹板-27 | D75: PL6*748 | K75: 1 | L75: 73.33 | M75: 73.33 | O75: 1915 | P75: 748 | Q75: 66 | R75: 1.915*0.748*0.066 | S75: 0.095
A76: 74 | B76: LL-花纹板-28 | C76: 连廊花纹板-28 | D76: PL6*748 | K76: 1 | L76: 54.45 | M76: 54.45 | O76: 1430 | P76: 748 | Q76: 66 | R76: 1.430*0.748*0.066 | S76: 0.071
A77: 75 | B77: LL-花纹板-29 | C77: 连廊花纹板-29 | D77: PL6*780 | K77: 1 | L77: 82.53 | M77: 82.53 | O77: 2005 | P77: 780 | Q77: 66 | R77: 2.005*0.780*0.066 | S77: 0.103
A78: 76 | B78: LL-花纹板-30 | C78: 连廊花纹板-30 | D78: PL6*490 | K78: 1 | L78: 50.40 | M78: 50.40 | O78: 2005 | P78: 490 | Q78: 66 | R78: 2.005*0.490*0.066 | S78: 0.065
A79: 77 | B79: LL-花纹板-31 | C79: 连廊花纹板-31 | D79: PL6*1430 | K79: 1 | L79: 153.13 | M79: 153.13 | O79: 2005 | P79: 1430 | Q79: 66 | R79: 2.005*1.430*0.066 | S79: 0.189
A80: 78 | B80: LL-花纹板-32 | C80: 连廊花纹板-32 | D80: PL6*1340 | K80: 1 | L80: 443.08 | M80: 443.08 | O80: 6280 | P80: 1340 | Q80: 66 | R80: 6.280*1.340*0.066 | S80: 0.555
A81: 79 | B81: LL-花纹板-33 | C81: 连廊花纹板-33 | D81: PL6*1490 | K81: 9 | L81: 493.47 | M81: 4441.20 | O81: 6280 | P81: 1490 | Q81: 66 | R81: 6.280*1.490*0.066 | S81: 5.558
A82: 80 | B82: LL-花纹板-34 | C82: 连廊花纹板-34 | D82: PL6*2010 | K82: 1 | L82: 666.18 | M82: 666.18 | O82: 6280 | P82: 2010 | Q82: 66 | R82: 6.280*2.010*0.066 | S82: 0.833
A83: 81 | B83: LL-花纹板-35 | C83: 连廊花纹板-35 | D83: PL6*970 | K83: 1 | L83: 316.87 | M83: 316.87 | O83: 6280 | P83: 970 | Q83: 66 | R83: 6.280*0.97*0.066 | S83: 0.402
A84: 82 | B84: LL-花纹板-36 | C84: 连廊花纹板-36 | D84: PL6*970 | K84: 1 | L84: 316.87 | M84: 316.87 | O84: 6280 | P84: 970 | Q84: 66 | R84: 6.280*0.97*0.066 | S84: 0.402
A85: 83 | B85: LL-花纹板-37 | C85: 连廊花纹板-37 | D85: PL6*1573 | K85: 1 | L85: 499.15 | M85: 499.15 | O85: 6025 | P85: 1573 | Q85: 66 | R85: 6.025*1.573*0.066 | S85: 0.626
A86: 84 | B86: LL-花纹板-38 | C86: 连廊花纹板-38 | D86: PL6*1490 | K86: 3 | L86: 475.03 | M86: 1425.08 | O86: 6025 | P86: 1490 | Q86: 66 | R86: 6.025*1.490*0.066 | S86: 1.777
A87: 85 | B87: LL-CG-1 | C87: 连廊套管-1 | D87: PD33.5*2.5 | K87: 20 | L87: 2.54 | M87: 50.75 | O87: 1390 | P87: 33.5 | Q87: 33.5 | R87: 1.390*0.0335*0.0335 | S87: 0.031
A88: 86 | B88: LL-CG-2 | C88: 连廊套管-2 | D88: PD33.5*2.5 | K88: 20 | L88: 2.65 | M88: 52.93 | O88: 1450 | P88: 33.5 | Q88: 33.5 | R88: 1.450*0.0335*0.0335 | S88: 0.033
A89: 87 | B89: LL-CG-3 | C89: 连廊套管-3 | D89: PD33.5*2.5 | K89: 16 | L89: 2.64 | M89: 42.27 | O89: 1448 | P89: 33.5 | Q89: 33.5 | R89: 1.448*0.0335*0.0335 | S89: 0.026
A90: 88 | B90: LL-CG-4 | C90: 连廊套管-4 | D90: PD33.5*2.5 | K90: 16 | L90: 2.52 | M90: 40.25 | O90: 1378 | P90: 33.5 | Q90: 33.5 | R90: 1.378*0.0335*0.0335 | S90: 0.025
A91: 89 | B91: LL-CG-5 | C91: 连廊套管-5 | D91: PD33.5*2.5 | K91: 20 | L91: 2.15 | M91: 43.07 | O91: 1180 | P91: 33.5 | Q91: 33.5 | R91: 1.180*0.0335*0.0335 | S91: 0.026
A92: 90 | B92: LL-CG-6 | C92: 连廊套管-6 | D92: PD33.5*2.5 | K92: 20 | L92: 2.19 | M92: 43.71 | O92: 1197 | P92: 33.5 | Q92: 33.5 | R92: 1.197*0.0335*0.0335 | S92: 0.027
A93: 91 | B93: LL-CG-7 | C93: 连廊套管-7 | D93: PD33.5*2.5 | K93: 20 | L93: 2.00 | M93: 40.06 | O93: 1097 | P93: 33.5 | Q93: 33.5 | R93: 1.097*0.0335*0.0335 | S93: 0.025
A94: 92 | B94: LL-CG-8 | C94: 连廊套管-8 | D94: PD33.5*2.5 | K94: 20 | L94: 2.14 | M94: 42.87 | O94: 1174 | P94: 33.5 | Q94: 33.5 | R94: 1.174*0.0335*0.0335 | S94: 0.026
A95: 93 | B95: LL-GL-1 | C95: 连廊钢梁-1 | D95: PL20*300 | K95: 1 | L95: 1112.66 | M95: 1112.66 | O95: 6882 | P95: 528 | Q95: 639 | R95: 6.882*0.528*0.639 | S95: 2.322
A96: 94 | B96: LL-GL-2 | C96: 连廊钢梁-2 | D96: PL20*300 | K96: 1 | L96: 1094.70 | M96: 1094.70 | O96: 6882 | P96: 528 | Q96: 618 | R96: 6.882*0.528*0.618 | S96: 2.246
A97: 95 | B97: LL-GL-3 | C97: 连廊钢梁-3 | D97: PL20*300 | K97: 1 | L97: 1091.79 | M97: 1091.79 | O97: 6882 | P97: 528 | Q97: 618 | R97: 6.882*0.528*0.618 | S97: 2.246
A98: 96 | B98: LL-GL-4 | C98: 连廊钢梁-4 | D98: PL20*300 | K98: 1 | L98: 1105.89 | M98: 1105.89 | O98: 6882 | P98: 528 | Q98: 618 | R98: 6.882*0.528*0.618 | S98: 2.246
A99: 97 | B99: LL-GL-5 | C99: 连廊钢梁-5 | D99: PL20*300 | K99: 1 | L99: 1087.63 | M99: 1087.63 | O99: 6882 | P99: 414 | Q99: 618 | R99: 6.882*0.414*0.618 | S99: 1.761
A100: 98 | B100: LL-GL-6 | C100: 连廊钢梁-6 | D100: PL20*300 | K100: 1 | L100: 1087.63 | M100: 1087.63 | O100: 6882 | P100: 414 | Q100: 618 | R100: 6.882*0.414*0.618 | S100: =O100*P100*Q100/1000000000*K100 -> 1.761
A101: 99 | B101: LL-GL-7 | C101: 连廊钢梁-7 | D101: PL20*300 | K101: 1 | L101: 1090.69 | M101: 1090.69 | O101: 6882 | P101: 528 | Q101: 618 | R101: 6.882*0.528*0.618 | S101: 2.246
A102: 100 | B102: LL-GL-8 | C102: 连廊钢梁-8 | D102: PL20*300 | K102: 1 | L102: 1090.69 | M102: 1090.69 | O102: 6882 | P102: 528 | Q102: 618 | R102: 6.882*0.528*0.618 | S102: 2.246
A103: 101 | B103: LL-GL-9 | C103: 连廊钢梁-9 | D103: HN450*200*9*14 | K103: 1 | L103: 525.77 | M103: 525.77 | O103: 6760 | P103: 305 | Q103: 450 | R103: 6.760*0.305*0.450 | S103: 0.928
A104: 102 | B104: LL-GL-10 | C104: 连廊钢梁-10 | D104: HN450*200*9*14 | K104: 1 | L104: 524.67 | M104: 524.67 | O104: 6760 | P104: 305 | Q104: 450 | R104: 6.760*0.305*0.450 | S104: 0.928
A105: 103 | B105: LL-GL-11 | C105: 连廊钢梁-11 | D105: HM390*300*10*16 | K105: 1 | L105: 719.84 | M105: 719.84 | O105: 6728 | P105: 300 | Q105: 390 | R105: 6.728*0.300*0.390 | S105: 0.787
A106: 104 | B106: LL-GL-12 | C106: 连廊钢梁-12 | D106: HM390*300*10*16 | K106: 1 | L106: 704.86 | M106: 704.86 | O106: 6728 | P106: 300 | Q106: 390 | R106: 6.728*0.300*0.390 | S106: 0.787
A107: 105 | B107: LL-GL-13 | C107: 连廊钢梁-13 | D107: HN450*200*9*14 | K107: 1 | L107: 507.51 | M107: 507.51 | O107: 6760 | P107: 200 | Q107: 450 | R107: 6.760*0.200*0.450 | S107: 0.608
A108: 106 | B108: LL-GL-15 | C108: 连廊钢梁-15 | D108: HN300*150*6.5*9 | K108: 6 | L108: 279.87 | M108: 1679.21 | O108: 5760 | P108: 407 | Q108: 694 | R108: 5.760*0.407*0.694 | S108: 9.762
A109: 107 | B109: LL-GL-16 | C109: 连廊钢梁-16 | D109: HN300*150*6.5*9 | K109: 6 | L109: 348.38 | M109: 2090.27 | O109: 7210 | P109: 407 | Q109: 694 | R109: 7.210*0.407*0.694 | S109: 12.219
A110: 108 | B110: LL-GL-17 | C110: 连廊钢梁-17 | D110: HN300*150*6.5*9 | K110: 6 | L110: 334.59 | M110: 2007.57 | O110: 6850 | P110: 407 | Q110: 694 | R110: 6.850*0.407*0.694 | S110: 11.609
A111: 109 | B111: LL-GL-19 | C111: 连廊钢梁-19 | D111: HN800*300*14*26 | K111: 1 | L111: 3090.06 | M111: 3090.06 | O111: 13836 | P111: 405 | Q111: 800 | R111: 13.836*0.405*0.8 | S111: 4.483
A112: 110 | B112: LL-GL-20 | C112: 连廊钢梁-20 | D112: HN800*300*14*26 | K112: 1 | L112: 3090.06 | M112: 3090.06 | O112: 13836 | P112: 405 | Q112: 800 | R112: 13.836*0.405*0.8 | S112: 4.483
A113: 111 | B113: LL-GL-21 | C113: 连廊钢梁-21 | D113: HN800*300*14*26 | K113: 1 | L113: 3019.38 | M113: 3019.38 | O113: 13589 | P113: 405 | Q113: 800 | R113: 13.589*0.405*0.8 | S113: 4.403
A114: 112 | B114: LL-GL-22 | C114: 连廊钢梁-22 | D114: HN800*300*14*26 | K114: 1 | L114: 3019.38 | M114: 3019.38 | O114: 13589 | P114: 405 | Q114: 800 | R114: 13.589*0.405*0.8 | S114: 4.403
A115: 113 | B115: LL-GL-23 | C115: 连廊钢梁-23 | D115: HN800*300*14*26 | K115: 1 | L115: 410.20 | M115: 410.20 | O115: 1828 | P115: 405 | Q115: 800 | R115: 1.828*0.405*0.8 | S115: 0.592
A116: 114 | B116: LL-GL-24 | C116: 连廊钢梁-24 | D116: HN800*300*14*26 | K116: 1 | L116: 410.20 | M116: 410.20 | O116: 1828 | P116: 405 | Q116: 800 | R116: 1.828*0.405*0.8 | S116: 0.592
A117: 115 | B117: LL-GL-25 | C117: 连廊钢梁-25 | D117: HN800*300*14*26 | K117: 1 | L117: 1078.07 | M117: 1078.07 | O117: 4828 | P117: 405 | Q117: 800 | R117: 4.828*0.405*0.8 | S117: 1.564
A118: 116 | B118: LL-GL-26 | C118: 连廊钢梁-26 | D118: HN800*300*14*26 | K118: 1 | L118: 1078.07 | M118: 1078.07 | O118: 4828 | P118: 405 | Q118: 800 | R118: 4.828*0.405*0.8 | S118: 1.564
A119: 117 | B119: LL-GL-27 | C119: 连廊钢梁-27 | D119: HN800*300*14*26 | K119: 1 | L119: 397.95 | M119: 397.95 | O119: 1828 | P119: 405 | Q119: 800 | R119: 1.828*0.405*0.8 | S119: 0.592
A120: 118 | B120: LL-GL-28 | C120: 连廊钢梁-28 | D120: HN800*300*14*26 | K120: 1 | L120: 397.95 | M120: 397.95 | O120: 1828 | P120: 405 | Q120: 800 | R120: 1.828*0.405*0.8 | S120: 0.592
A121: 119 | B121: LL-GL-29 | C121: 连廊钢梁-29 | D121: HN800*300*14*26 | K121: 1 | L121: 1058.06 | M121: 1058.06 | O121: 4828 | P121: 405 | Q121: 800 | R121: 4.828*0.405*0.8 | S121: 1.564
A122: 120 | B122: LL-GL-30 | C122: 连廊钢梁-30 | D122: HN800*300*14*26 | K122: 1 | L122: 1058.06 | M122: 1058.06 | O122: 4828 | P122: 405 | Q122: 800 | R122: 4.828*0.405*0.8 | S122: 1.564
A123: 121 | B123: LL-GL-31 | C123: 连廊钢梁-31 | D123: HN800*300*14*26 | K123: 1 | L123: 2998.81 | M123: 2998.81 | O123: 13589 | P123: 405 | Q123: 800 | R123: 13.589*0.405*0.8 | S123: 4.403
A124: 122 | B124: LL-GL-32 | C124: 连廊钢梁-32 | D124: HN800*300*14*26 | K124: 1 | L124: 2998.81 | M124: 2998.81 | O124: 13589 | P124: 405 | Q124: 800 | R124: 13.589*0.405*0.8 | S124: 4.403
A125: 123 | B125: LL-GL-33 | C125: 连廊钢梁-33 | D125: HN800*300*14*26 | K125: 1 | L125: 2969.19 | M125: 2969.19 | O125: 13589 | P125: 405 | Q125: 800 | R125: 13.589*0.405*0.8 | S125: 4.403
A126: 124 | B126: LL-GL-34 | C126: 连廊钢梁-34 | D126: HN800*300*14*26 | K126: 1 | L126: 2969.19 | M126: 2969.19 | O126: 13589 | P126: 405 | Q126: 800 | R126: 13.589*0.405*0.8 | S126: 4.403
A127: 125 | B127: LL-GL-35 | C127: 连廊钢梁-35 | D127: HM488*300*11*18 | K127: 1 | L127: 1178.75 | M127: 1178.75 | O127: 8947 | P127: 405 | Q127: 488 | R127: 8.947*0.405*0.488 | S127: 1.768
A128: 126 | B128: LL-GL-36 | C128: 连廊钢梁-36 | D128: HM488*300*11*18 | K128: 1 | L128: 1178.75 | M128: 1178.75 | O128: 8947 | P128: 405 | Q128: 488 | R128: 8.947*0.405*0.488 | S128: 1.768
A129: 127 | B129: LL-GL-37 | C129: 连廊钢梁-37 | D129: HM390*300*10*16 | K129: 1 | L129: 522.96 | M129: 522.96 | O129: 4828 | P129: 346 | Q129: 643 | R129: 4.828*0.346*0.643 | S129: 1.074
A130: 128 | B130: LL-GL-38 | C130: 连廊钢梁-38 | D130: HM390*300*10*16 | K130: 1 | L130: 522.96 | M130: 522.96 | O130: 4828 | P130: 405 | Q130: 643 | R130: 4.828*0.405*0.643 | S130: 1.257
A131: 129 | B131: LL-GL-39 | C131: 连廊钢梁-39 | D131: HM390*300*10*16 | K131: 1 | L131: 209.15 | M131: 209.15 | O131: 1828 | P131: 405 | Q131: 643 | R131: 1.828*0.405*0.643 | S131: 0.476
A132: 130 | B132: LL-GL-40 | C132: 连廊钢梁-40 | D132: HM390*300*10*16 | K132: 1 | L132: 209.15 | M132: 209.15 | O132: 1828 | P132: 405 | Q132: 643 | R132: 1.828*0.405*0.643 | S132: 0.476
A133: 131 | B133: LL-GL-41 | C133: 连廊钢梁-41 | D133: HM390*300*10*16 | K133: 2 | L133: 612.15 | M133: 1224.30 | O133: 5588 | P133: 300 | Q133: 784 | R133: 5.588*0.300*0.784 | S133: 2.629
A134: 132 | B134: LL-GL-42 | C134: 连廊钢梁-42 | D134: HM390*300*10*16 | K134: 1 | L134: 703.76 | M134: 703.76 | O134: 6728 | P134: 300 | Q134: 390 | R134: 6.728*0.300*0.390 | S134: 0.787
A135: 133 | B135: LL-GL-43 | C135: 连廊钢梁-43 | D135: HM390*300*10*16 | K135: 6 | L135: 741.41 | M135: 4448.48 | O135: 7088 | P135: 300 | Q135: 390 | R135: 7.088*0.300*0.390 | S135: 4.976
A136: 134 | B136: LL-GL-44 | C136: 连廊钢梁-44 | D136: HM390*300*10*16 | K136: 6 | L136: 584.51 | M136: 3507.07 | O136: 5588 | P136: 300 | Q136: 390 | R136: 5.588*0.300*0.390 | S136: 3.923
A137: 135 | B137: LL-GL-45 | C137: 连廊钢梁-45 | D137: HM390*300*10*16 | K137: 1 | L137: 227.99 | M137: 227.99 | O137: 1916 | P137: 405 | Q137: 450 | R137: 1.916*0.405*0.450 | S137: 0.349
A138: 136 | B138: LL-GL-46 | C138: 连廊钢梁-46 | D138: HM390*300*10*16 | K138: 1 | L138: 227.99 | M138: 227.99 | O138: 1916 | P138: 405 | Q138: 450 | R138: 1.916*0.405*0.450 | S138: 0.349
A139: 137 | B139: LL-GL-47 | C139: 连廊钢梁-47 | D139: HM390*300*10*16 | K139: 1 | L139: 563.47 | M139: 563.47 | O139: 4937 | P139: 405 | Q139: 450 | R139: 4.937*0.405*0.450 | S139: 0.900
A140: 138 | B140: LL-GL-48 | C140: 连廊钢梁-48 | D140: HM390*300*10*16 | K140: 1 | L140: 563.47 | M140: 563.47 | O140: 4937 | P140: 405 | Q140: 450 | R140: 4.937*0.405*0.450 | S140: 0.900
A141: 139 | B141: LL-GL-49 | C141: 连廊钢梁-49 | D141: HM390*300*10*16 | K141: 4 | L141: 159.92 | M141: 639.70 | O141: 1529 | P141: 300 | Q141: 390 | R141: 1.529*0.300*0.390 | S141: 0.716
A142: 140 | B142: LL-GL-50 | C142: 连廊钢梁-50 | D142: HN350*175*7*11 | K142: 2 | L142: 312.59 | M142: 625.17 | O142: 5770 | P142: 175 | Q142: 744 | R142: 5.770*0.175*0.744 | S142: 1.503
A143: 141 | B143: LL-GL-51 | C143: 连廊钢梁-51 | D143: HN350*175*7*11 | K143: 6 | L143: 280.01 | M143: 1680.06 | O143: 5670 | P143: 175 | Q143: 350 | R143: 5.670*0.175*0.350 | S143: 2.084
A144: 142 | B144: LL-GL-52 | C144: 连廊钢梁-52 | D144: HN350*175*7*11 | K144: 2 | L144: 307.65 | M144: 615.29 | O144: 5670 | P144: 175 | Q144: 744 | R144: 5.670*0.175*0.744 | S144: 1.476
A145: 143 | B145: LL-GL-53 | C145: 连廊钢梁-53 | D145: HN350*175*7*11 | K145: 7 | L145: 290.36 | M145: 2032.54 | O145: 5670 | P145: 175 | Q145: 360 | R145: 5.670*0.175*0.360 | S145: 2.500
A146: 144 | B146: LL-GL-54 | C146: 连廊钢梁-54 | D146: HN350*175*7*11 | K146: 3 | L146: 267.42 | M146: 802.25 | O146: 5415 | P146: 175 | Q146: 350 | R146: 5.415*0.175*0.350 | S146: 0.995
A147: 145 | B147: LL-GL-55 | C147: 连廊钢梁-55 | D147: HN350*175*7*11 | K147: 3 | L147: 277.77 | M147: 833.31 | O147: 5415 | P147: 175 | Q147: 350 | R147: 5.415*0.175*0.350 | S147: 0.995
A148: 146 | B148: LL-GL-56 | C148: 连廊钢梁-56 | D148: HN600*200*11*17 | K148: 1 | L148: 1440.33 | M148: 1440.33 | O148: 13589 | P148: 305 | Q148: 853 | R148: 13.589*0.305*0.853 | S148: 3.535
A149: 147 | B149: LL-GL-57 | C149: 连廊钢梁-57 | D149: HN600*200*11*17 | K149: 1 | L149: 1440.33 | M149: 1440.33 | O149: 13589 | P149: 305 | Q149: 853 | R149: 13.589*0.305*0.853 | S149: 3.535
A150: 148 | B150: LL-GL-58 | C150: 连廊钢梁-58 | D150: HN450*200*9*14 | K150: 1 | L150: 146.28 | M150: 146.28 | O150: 1828 | P150: 305 | Q150: 450 | R150: 1.828*0.305*0.450 | S150: 0.251
A151: 149 | B151: LL-GL-59 | C151: 连廊钢梁-59 | D151: HN450*200*9*14 | K151: 1 | L151: 152.56 | M151: 152.56 | O151: 1828 | P151: 305 | Q151: 450 | R151: 1.828*0.305*0.450 | S151: 0.251
A152: 150 | B152: LL-GL-60 | C152: 连廊钢梁-60 | D152: HN450*200*9*14 | K152: 1 | L152: 402.21 | M152: 402.21 | O152: 4828 | P152: 200 | Q152: 450 | R152: 4.828*0.200*0.450 | S152: 0.435
A153: 151 | B153: LL-GL-61 | C153: 连廊钢梁-61 | D153: HN450*200*9*14 | K153: 1 | L153: 402.21 | M153: 402.21 | O153: 4828 | P153: 305 | Q153: 450 | R153: 4.828*0.305*0.450 | S153: 0.663
A154: 152 | B154: LL-GL-62 | C154: 连廊钢梁-62 | D154: HN450*200*9*14 | K154: 12 | L154: 424.75 | M154: 5097.05 | O154: 5670 | P154: 200 | Q154: 450 | R154: 5.670*0.200*0.450 | S154: 6.124
A155: 153 | B155: LL-GL-63 | C155: 连廊钢梁-63 | D155: HN450*200*9*14 | K155: 4 | L155: 544.61 | M155: 2178.46 | O155: 7270 | P155: 200 | Q155: 450 | R155: 7.270*0.200*0.450 | S155: 2.617
A156: 154 | B156: LL-GL-64 | C156: 连廊钢梁-64 | D156: HN450*200*9*14 | K156: 8 | L156: 537.12 | M156: 4296.98 | O156: 7170 | P156: 200 | Q156: 450 | R156: 7.170*0.200*0.450 | S156: 5.162
A157: 155 | B157: LL-GL-65 | C157: 连廊钢梁-65 | D157: HN450*200*9*14 | K157: 2 | L157: 133.72 | M157: 267.44 | O157: 1785 | P157: 200 | Q157: 450 | R157: 1.785*0.200*0.450 | S157: 0.321
A158: 156 | B158: LL-GL-66 | C158: 连廊钢梁-66 | D158: HN450*200*9*14 | K158: 5 | L158: 506.41 | M158: 2532.04 | O158: 6760 | P158: 200 | Q158: 450 | R158: 6.76*0.200*0.450 | S158: 3.042
A159: 157 | B159: LL-GL-67 | C159: 连廊钢梁-67 | D159: HN450*200*9*14 | K159: 4 | L159: 519.96 | M159: 2079.86 | O159: 6760 | P159: 200 | Q159: 450 | R159: 6.76*0.200*0.450 | S159: 2.434
A160: 158 | B160: LL-GL-68 | C160: 连廊钢梁-68 | D160: I16 | K160: 4 | L160: 36.82 | M160: 147.30 | O160: 1795 | P160: 88 | Q160: 160 | R160: 1.795*0.088*0.16 | S160: 0.101
A161: 159 | B161: LL-GL-69 | C161: 连廊钢梁-69 | D161: I16 | K161: 2 | L161: 39.26 | M161: 78.53 | O161: 1795 | P161: 150 | Q161: 170 | R161: 1.795*0.15*0.17 | S161: 0.092
A162: 160 | B162: LL-GL-70 | C162: 连廊钢梁-70 | D162: I16 | K162: 2 | L162: 15.94 | M162: 31.87 | O162: 744 | P162: 88 | Q162: 160 | R162: 0.744*0.088*0.16 | S162: 0.021
A163: 161 | B163: LL-GL-71 | C163: 连廊钢梁-71 | D163: I16 | K163: 3 | L163: 40.74 | M163: 122.22 | O163: 1986 | P163: 88 | Q163: 160 | R163: 1.986*0.088*0.16 | S163: 0.084
A164: 162 | B164: LL-GL-72 | C164: 连廊钢梁-72 | D164: I16 | K164: 2 | L164: 50.03 | M164: 100.06 | O164: 2439 | P164: 88 | Q164: 160 | R164: 2.439*0.088*0.16 | S164: =O164*P164*Q164/1000000000*K164 -> 0.069
A165: 163 | B165: LL-GL-73 | C165: 连廊钢梁-73 | D165: I16 | K165: 2 | L165: 26.45 | M165: 52.91 | O165: 1171 | P165: 150 | Q165: 170 | R165: 1.171*0.15*0.17 | S165: 0.060
A166: 164 | B166: LL-GL-74 | C166: 连廊钢梁-74 | D166: I16 | K166: 3 | L166: 33.72 | M166: 101.17 | O166: 1644 | P166: 88 | Q166: 160 | R166: 1.644*0.088*0.16 | S166: 0.069
A167: 165 | B167: LL-GL-75 | C167: 连廊钢梁-75 | D167: I16 | K167: 2 | L167: 8.74 | M167: 17.48 | O167: 426 | P167: 88 | Q167: 160 | R167: 0.426*0.088*0.16 | S167: 0.012
A168: 166 | B168: LL-GL-76 | C168: 连廊钢梁-76 | D168: I16 | K168: 2 | L168: 11.28 | M168: 22.56 | O168: 550 | P168: 88 | Q168: 160 | R168: 0.55*0.088*0.16 | S168: 0.015
A169: 167 | B169: LL-GL-77 | C169: 连廊钢梁-77 | D169: I16 | K169: 2 | L169: 52.47 | M169: 104.94 | O169: 2439 | P169: 150 | Q169: 170 | R169: 2.439*0.015*0.17 | S169: 0.124
A170: 168 | B170: LL-GZ-1 | C170: 连廊钢柱-1 | D170: HW200*200*8*12 | K170: 4 | L170: 155.73 | M170: 622.91 | O170: 2570 | P170: 290 | Q170: 2753 | R170: 2.57*0.29*2.753 | S170: 8.207
A171: 169 | B171: LL-GZ-2 | C171: 连廊钢柱-2 | D171: HW200*200*8*12 | K171: 4 | L171: 155.73 | M171: 622.91 | O171: 2570 | P171: 290 | Q171: 2753 | R171: 2.57* 0.29* 2.753 | S171: 8.207
A172: 170 | B172: LL-GZ-3 | C172: 连廊钢柱-3 | D172: HW200*200*8*12 | K172: 8 | L172: 158.07 | M172: 1264.55 | O172: 2570 | P172: 380 | Q172: 2753 | R172: 2.57* 0.38* 2.753 | S172: 21.509
A173: 171 | B173: LL-GZ-4 | C173: 连廊钢柱-4 | D173: HW200*200*8*12 | K173: 4 | L173: 171.23 | M173: 684.91 | O173: 2570 | P173: 556 | Q173: 2753 | R173: 2.57*0.556*2.753 | S173: 15.735
A174: 172 | B174: LL-GZ-5 | C174: 连廊钢柱-5 | D174: HW200*200*8*12 | K174: 4 | L174: 171.23 | M174: 684.91 | O174: 2570 | P174: 556 | Q174: 2753 | R174: 2.57*0.556*2.753 | S174: 15.735
A175: 173 | B175: LL-GZ-6 | C175: 连廊钢柱-6 | D175: HW250*250*9*14 | K175: 2 | L175: 367.01 | M175: 734.02 | O175: 4620 | P175: 340 | Q175: 4803 | R175: 4.62*0.34*4.803 | S175: 15.089
A176: 174 | B176: LL-GZ-7 | C176: 连廊钢柱-7 | D176: HW250*250*9*14 | K176: 2 | L176: 367.01 | M176: 734.02 | O176: 4620 | P176: 340 | Q176: 4803 | R176: 4.62*0.34*4.803 | S176: 15.089
A177: 175 | B177: LL-GZ-8 | C177: 连廊钢柱-8 | D177: HW250*250*9*14 | K177: 2 | L177: 385.74 | M177: 771.47 | O177: 4620 | P177: 598 | Q177: 4803 | R177: 4.62*0.598*4.803 | S177: 26.539
A178: 176 | B178: LL-GZ-9 | C178: 连廊钢柱-9 | D178: HW250*250*9*14 | K178: 2 | L178: 385.74 | M178: 771.47 | O178: 4620 | P178: 598 | Q178: 4803 | R178: 4.62*0.598*4.803 | S178: 26.539
A179: 177 | B179: LL-GZ-10 | C179: 连廊钢柱-10 | D179: HW250*250*9*14 | K179: 4 | L179: 369.35 | M179: 1477.39 | O179: 4620 | P179: 430 | Q179: 4803 | R179: 4.62*0.43*4.803 | S179: 38.167
A180: 178 | B180: LL-LG-1 | C180: 连廊栏杆-1 | D180: PIP50*3 | K180: 37 | L180: 82.87 | M180: 3066.22 | O180: 6000 | P180: 1100 | Q180: 50 | R180: 6*1.1*0.05 | S180: 12.210
A181: 179 | B181: LL-LT-1 | C181: 连廊拉条-1 | D181: D12 | K181: 36 | L181: 1.22 | M181: 44.10 | O181: 1532 | P181: 12 | Q181: 12 | R181: 1.532*0.012*0.012 | S181: 0.008
A182: 180 | B182: LL-LT-2 | C182: 连廊拉条-2 | D182: D12 | K182: 20 | L182: 1.18 | M182: 23.58 | O182: 1475 | P182: 12 | Q182: 12 | R182: 1.475*0.012*0.012 | S182: 0.004
A183: 181 | B183: LL-LT-3 | C183: 连廊拉条-3 | D183: D12 | K183: 36 | L183: 0.37 | M183: 13.38 | O183: 465 | P183: 12 | Q183: 12 | R183: 0.465*0.012*0.012 | S183: 0.002
A184: 182 | B184: LL-LT-4 | C184: 连廊拉条-4 | D184: D12 | K184: 16 | L184: 1.17 | M184: 18.72 | O184: 1463 | P184: 12 | Q184: 12 | R184: 1.463*0.012*0.012 | S184: 0.003
A185: 183 | B185: LL-LT-5 | C185: 连廊拉条-5 | D185: D12 | K185: 20 | L185: 1.01 | M185: 20.13 | O185: 1259 | P185: 12 | Q185: 12 | R185: 1.259*0.012*0.012 | S185: 0.004
A186: 184 | B186: LL-LT-6 | C186: 连廊拉条-6 | D186: D12 | K186: 40 | L186: 0.94 | M186: 37.73 | O186: 1180 | P186: 12 | Q186: 12 | R186: 1.180*0.012*0.012 | S186: 0.007
A187: 185 | B187: LL-LT-7 | C187: 连廊拉条-7 | D187: D12 | K187: 20 | L187: 1.03 | M187: 20.50 | O187: 1283 | P187: 12 | Q187: 12 | R187: 1.283*0.012*0.012 | S187: 0.004
A188: 186 | B188: LL-LT-8 | C188: 连廊拉条-8 | D188: D12 | K188: 40 | L188: 1.01 | M188: 40.44 | O188: 1265 | P188: 12 | Q188: 12 | R188: 1.265*0.012*0.012 | S188: 0.007
A189: 187 | B189: LL-SC-1 | C189: 连廊水平支撑-1 | D189: PD120*5 | K189: 3 | L189: =189.08-L190 -> 146.88 | M189: =567.25-M190 -> 313.75 | O189: 6334 | P189: 150 | Q189: 648 | R189: 6.334*0.015*0.648 | S189: 1.847
K190: 6 | L190: 42.20 | M190: 253.50 | O190: 3051 | P190: 150 | Q190: 150 | R190: 3.051*0.015*0.015 | S190: 0.412
A191: 188 | B191: LL-SC-2 | C191: 连廊水平支撑-2 | D191: PD120*5 | K191: 3 | L191: =224.08-L192 -> 173.48 | M191: =672.25-M192 -> 368.65 | O191: 7583 | P191: 150 | Q191: 706 | R191: 7.583*0.15*0.706 | S191: 2.409
K192: 6 | L192: 50.60 | M192: 303.60 | O192: 2646 | P192: 150 | Q192: 150 | R192: 2.646*0.15*0.15 | S192: 0.357
A193: 189 | B193: LL-SC-3 | C193: 连廊水平支撑-3 | D193: PD120*5 | K193: 3 | L193: =214.09-L194 -> 165.89 | M193: =642.26-M194 -> 352.76 | O193: 7226 | P193: 150 | Q193: 681 | R193: 7.226*0.15*0.681 | S193: 2.214
K194: 6 | L194: 48.20 | M194: 289.50 | O194: 3481 | P194: 150 | Q194: 150 | R194: 3.481*0.15*0.15 | S194: 0.470
A195: 200 | B195: LL-XG-1 | C195: 连廊系杆-1 | D195: PD120*5 | K195: 20 | L195: 56.21 | M195: 1124.30 | O195: 3780 | P195: 160 | Q195: 160 | R195: 3.78*0.16*0.16 | S195: 1.935
A196: 201 | B196: LL-XG-2 | C196: 连廊系杆-2 | D196: PD120*5 | K196: 10 | L196: 55.52 | M196: 555.17 | O196: 3730 | P196: 160 | Q196: 160 | R196: 3.73*0.16*0.16 | S196: 0.955
A197: 202 | B197: LL-XLT-1 | C197: 连廊斜拉条-1 | D197: D12 | K197: 40 | L197: 1.91 | M197: 76.47 | O197: 2392 | P197: 12 | Q197: 12 | R197: 2.392*0.012*0.012 | S197: 0.014
A198: 203 | B198: LL-XLT-2 | C198: 连廊斜拉条-2 | D198: D12 | K198: 40 | L198: 1.85 | M198: 73.84 | O198: 2309 | P198: 12 | Q198: 12 | R198: 2.309*0.012*0.012 | S198: 0.013
A199: 204 | B199: LL-XLT-3 | C199: 连廊斜拉条-3 | D199: D12 | K199: 4 | L199: 1.93 | M199: 7.70 | O199: 2409 | P199: 12 | Q199: 12 | R199: 2.409*0.012*0.012 | S199: 0.001
A200: 205 | B200: LL-XLT-4 | C200: 连廊斜拉条-4 | D200: D12 | K200: 4 | L200: 1.92 | M200: 7.69 | O200: 2404 | P200: 12 | Q200: 12 | R200: 2.404*0.012*0.012 | S200: 0.001
... 52 more rows

Sheet 浮选平台
D1: 出口厄瓜多尔浮选厂房物资清单
A2: 序号 | B2: 英文名称 | C2: 中文名称 | D2: 规格型号 | E2: 单位 | F2: 数量 | G2: 单价 | H2: 总金额 | I2: 箱号 | J2: 件数 | K2: 发货状态 | L2: 单重（kg) | M2: 净重（kg） | N2: 毛重 （kg） | O2: 长×宽×高（m） | P2: 体积（m3) | Q2: HS编码
A3: 1 | B3: 600踏步-1 | C3: 600踏步 | D3: PL4.5*600 | E3: 件 | F3: 100 | L3: 7.2 | M3: =L3*F3 -> 720 | O3: 0.6*0.23*0.11 | P3: 1.5180
A4: 2 | B4: 800踏步-1 | C4: 800踏步 | D4: PL4.5*800 | E4: 件 | F4: 100 | L4: 9.6 | M4: 960 | O4: 0.8*0.23*0.11 | P4: 2.0240
A5: 3 | B5: 1000踏步-1 | C5: 1000踏步 | D5: PL4.5*1000 | E5: 件 | F5: 20 | L5: 12.7 | M5: 254 | O5: 1.0*0.23*0.13 | P5: 0.5980
A6: 4 | B6: B-1 | C6: 板-1 | D6: PL8*60 | E6: 件 | F6: 8 | L6: 0.2 | M6: 1.6 | O6: 0.06*0.06*0.008 | P6: 0.0002
A7: 5 | B7: CC-1 | C7: 竖支撑-1 | D7: L75*6 | E7: 件 | F7: 272 | L7: 12.3 | M7: 3345.6 | O7: 0.85*0.16*0.15 | P7: 5.5488
A8: 6 | B8: CC-2 | C8: 竖支撑-2 | D8: L75*6 | E8: 件 | F8: 24 | L8: 12.3 | M8: 295.2 | O8: 0.85*0.16*0.15 | P8: 0.4896
A9: 7 | B9: CC-3 | C9: 竖支撑-3 | D9: L75*6 | E9: 件 | F9: 22 | L9: 12.3 | M9: 270.6 | O9: 0.85*0.16*0.15 | P9: 0.4488
A10: 8 | B10: CC-4 | C10: 竖支撑-4 | D10: L75*6 | E10: 件 | F10: 28 | L10: 12.3 | M10: 344.4 | O10: 0.85*0.16*0.15 | P10: 0.5712
A11: 9 | B11: CC-5 | C11: 竖支撑-5 | D11: L75*6 | E11: 件 | F11: 28 | L11: 12.3 | M11: 344.4 | O11: 0.85*0.16*0.15 | P11: 0.5712
A12: 10 | B12: CG-1 | C12: 撑杆-1 | D12: PIP32*2.5 | E12: 件 | F12: 16 | L12: 2.1 | M12: 33.6 | O12: 1.2*0.035*0.035 | P12: 0.0235
A13: 11 | B13: DB-1 | C13: 垫板-1 | D13: PL28*250 | E13: 件 | F13: 4 | L13: 20.9 | M13: 83.6 | O13: 0.38*0.25*0.03 | P13: 0.0114
A14: 12 | B14: DB-2 | C14: 垫板-2 | D14: PL40*150 | E14: 件 | F14: 8 | L14: 7.1 | M14: 56.8 | O14: 0.15*0.15*0.04 | P14: 0.0072
A15: 13 | B15: DGD-1 | C15: 单轨吊-1 | D15: I45A | E15: 件 | F15: 2 | L15: 748.9 | M15: 1497.8 | O15: 9.42*0.22*0.6 | P15: 2.4869
A16: 14 | B16: DP-1 | C16: 垫片-1 | D16: PL20*80 | E16: 件 | F16: 64 | L16: 1 | M16: 64 | O16: 0.08*0.08*0.02 | P16: 0.0082
A17: 15 | B17: DP-2 | C17: 垫片-2 | D17: PL22*75 | E17: 件 | F17: 10 | L17: 1 | M17: 10 | O17: 0.08*0.08*0.022 | P17: 0.0014
A18: 16 | B18: DP-3 | C18: 垫片-3 | D18: PL16*70 | E18: 件 | F18: 408 | L18: 0.6 | M18: 244.8 | O18: 0.07*0.07*0.016 | P18: 0.0320
A19: 17 | B19: DP-4 | C19: 垫片-4 | D19: PL28*70 | E19: 件 | F19: 48 | L19: 1.1 | M19: 52.8 | O19: 0.07*0.07*0.028 | P19: 0.0066
A20: 18 | B20: DP-5 | C20: 垫片-5 | D20: PL20*100 | E20: 件 | F20: 112 | L20: 1.6 | M20: 179.2 | O20: 0.1*0.1*0.02 | P20: 0.0224
A21: 19 | B21: DP-6 | C21: 垫片-6 | D21: PL18*70 | E21: 件 | F21: 160 | L21: 0.7 | M21: 112 | O21: 0.07*0.07*0.018 | P21: 0.0141
A22: 20 | B22: DP-7 | C22: 垫片-7 | D22: PL22*75 | E22: 件 | F22: 90 | L22: 1 | M22: 90 | O22: 0.08*0.08*0.022 | P22: 0.0127
A23: 21 | B23: DWJG-1 | C23: 打瓦角钢-1 | D23: L50*5 | E23: 件 | F23: 25 | L23: 275.9 | M23: 551.8 | O23: 0.05*0.05*6 | P23: 0.3750
A24: 22 | B24: DWJG-2 | C24: 打瓦角钢-2 | D24: L50*5 | E24: 件 | F24: 5 | L24: 29.1 | M24: 116.4 | O24: 0.05*0.05*6 | P24: 0.0750
A25: 23 | B25: GT-1 | C25: 钢梯-1 | D25: C18A | E25: 件 | F25: 2 | L25: 644.8 | M25: =L25*F25 -> 1289.6 | O25: 6.6*0.9*0.18 | P25: 2.1384
A26: 24 | B26: GT-2 | C26: 钢梯-2 | D26: HM294*200*8*12 | E26: 件 | F26: 2 | L26: 1472.7 | M26: 2945.4 | O26: 8.3*1.1*0.3 | P26: 5.4780
A27: 25 | B27: GT-3 | C27: 钢梯-3 | D27: HM294*200*8*12 | E27: 件 | F27: 2 | L27: 1423.2 | M27: 2846.4 | O27: 8.1*1.1*0.3 | P27: 5.3460
A28: 26 | B28: HW-1 | C28: 花纹板-1 | D28: PL10*1400 | E28: 件 | F28: 1 | L28: 424.2 | M28: 424.2 | O28: 3.84*1.4*0.1 | P28: 0.5376
A29: 27 | B29: HW-2 | C29: 花纹板-2 | D29: PL10*1400 | E29: 件 | F29: 1 | L29: 424.2 | M29: 424.2 | O29: 3.84*1.4*0.1 | P29: 0.5376
A30: 28 | B30: HW-3 | C30: 花纹板-3 | D30: PL10*2430 | E30: 件 | F30: 2 | L30: 688.4 | M30: 1376.8 | O30: 3.84*2.43*0.01 | P30: 0.1866
A31: 29 | B31: HW-4 | C31: 花纹板-4 | D31: PL10*1785 | E31: 件 | F31: 2 | L31: 177.6 | M31: 355.2 | O31: 3.2*1.8*0.01 | P31: 0.1152
A32: 30 | B32: HW-5 | C32: 花纹板-5 | D32: PL10*1035 | E32: 件 | F32: 2 | L32: 190.9 | M32: 381.8 | O32: 2.16*1.04*0.1 | P32: 0.4493
A33: 31 | B33: HW-6 | C33: 花纹板-6 | D33: PL10*1035 | E33: 件 | F33: 2 | L33: 190.9 | M33: 381.8 | O33: 2.16*1.04*0.1 | P33: 0.4493
A34: 32 | B34: HW-7 | C34: 花纹板-7 | D34: PL10*915 | E34: 件 | F34: 1 | L34: 166.8 | M34: 166.8 | O34: 2.16*0.92*0.1 | P34: 0.1987
A35: 33 | B35: HW-8 | C35: 花纹板-8 | D35: PL10*915 | E35: 件 | F35: 1 | L35: 166.8 | M35: 166.8 | O35: 2.16*0.92*0.1 | P35: 0.1987
A36: 34 | B36: HW-9 | C36: 花纹板-9 | D36: PL10*915 | E36: 件 | F36: 3 | L36: 170.4 | M36: 511.2 | O36: 2.16*0.92*0.1 | P36: 0.5962
A37: 35 | B37: HW-10 | C37: 花纹板-10 | D37: PL10*915 | E37: 件 | F37: 3 | L37: 170.4 | M37: 511.2 | O37: 2.16*0.92*0.1 | P37: 0.5962
A38: 36 | B38: HW-11 | C38: 花纹板-11 | D38: PL10*990 | E38: 件 | F38: 2 | L38: 185.5 | M38: 371 | O38: 2.16*0.99*0.1 | P38: 0.4277
A39: 37 | B39: HW-12 | C39: 花纹板-12 | D39: PL10*990 | E39: 件 | F39: 2 | L39: 185.5 | M39: 371 | O39: 2.16*0.99*0.1 | P39: 0.4277
A40: 38 | B40: HW-13 | C40: 花纹板-13 | D40: PL10*1035 | E40: 件 | F40: 4 | L40: 170.4 | M40: 681.6 | O40: 1.92*1.04*0.1 | P40: 0.7987
A41: 39 | B41: HW-14 | C41: 花纹板-14 | D41: PL10*1035 | E41: 件 | F41: 2 | L41: 170.4 | M41: 340.8 | O41: 1.92*1.04*0.1 | P41: 0.3994
A42: 40 | B42: HW-15 | C42: 花纹板-15 | D42: PL10*1035 | E42: 件 | F42: 2 | L42: 170.4 | M42: 340.8 | O42: 1.92*1.04*0.1 | P42: 0.3994
A43: 41 | B43: HW-16 | C43: 花纹板-16 | D43: PL10*915 | E43: 件 | F43: 4 | L43: 152.3 | M43: 609.2 | O43: 1.92*0.92*0.1 | P43: 0.7066
A44: 42 | B44: HW-17 | C44: 花纹板-17 | D44: PL10*915 | E44: 件 | F44: 2 | L44: 152.3 | M44: 304.6 | O44: 1.92*0.92*0.1 | P44: 0.3533
A45: 43 | B45: HW-18 | C45: 花纹板-18 | D45: PL10*915 | E45: 件 | F45: 2 | L45: 152.3 | M45: 304.6 | O45: 1.92*0.92*0.1 | P45: 0.3533
A46: 44 | B46: HW-19 | C46: 花纹板-19 | D46: PL10*1035 | E46: 件 | F46: 2 | L46: 113.4 | M46: 226.8 | O46: 1.32*1.04*0.1 | P46: 0.2746
A47: 45 | B47: HW-20 | C47: 花纹板-20 | D47: PL10*1035 | E47: 件 | F47: 2 | L47: 112.5 | M47: 225 | O47: 1.32*1.04*0.1 | P47: 0.2746
A48: 46 | B48: HW-21 | C48: 花纹板-21 | D48: PL10*915 | E48: 件 | F48: 8 | L48: 100.8 | M48: 806.4 | O48: 1.32*0.92*0.1 | P48: 0.9715
A49: 47 | B49: HW-22 | C49: 花纹板-22 | D49: PL10*990 | E49: 件 | F49: 4 | L49: 109.4 | M49: 437.6 | O49: 1.32*0.99*0.1 | P49: 0.5227
A50: 48 | B50: HW-23 | C50: 花纹板-23 | D50: PL10*1035 | E50: 件 | F50: 2 | L50: 111.3 | M50: 222.6 | O50: 1.29*1.04*0.1 | P50: 0.2683
A51: 49 | B51: HW-24 | C51: 花纹板-24 | D51: PL10*1035 | E51: 件 | F51: 2 | L51: 110.4 | M51: 220.8 | O51: 1.29*1.04*0.1 | P51: 0.2683
A52: 50 | B52: HW-25 | C52: 花纹板-25 | D52: PL10*915 | E52: 件 | F52: 8 | L52: 98.9 | M52: 791.2 | O52: 1.29*0.92*0.1 | P52: 0.9494
A53: 51 | B53: HW-26 | C53: 花纹板-26 | D53: PL10*990 | E53: 件 | F53: 4 | L53: 107.4 | M53: 429.6 | O53: 1.29*0.99*0.1 | P53: 0.5108
A54: 52 | B54: HW-27 | C54: 花纹板-27 | D54: PL10*1035 | E54: 件 | F54: 2 | L54: 156.1 | M54: 312.2 | O54: 1.8*1.04*0.1 | P54: 0.3744
A55: 53 | B55: HW-28 | C55: 花纹板-28 | D55: PL10*1035 | E55: 件 | F55: 2 | L55: 156.1 | M55: 312.2 | O55: 1.8*1.04*0.1 | P55: 0.3744
A56: 54 | B56: HW-29 | C56: 花纹板-29 | D56: PL10*915 | E56: 件 | F56: 2 | L56: 139.6 | M56: 279.2 | O56: 1.8*0.92*0.1 | P56: 0.3312
A57: 55 | B57: HW-30 | C57: 花纹板-30 | D57: PL10*915 | E57: 件 | F57: 2 | L57: 139.6 | M57: 279.2 | O57: 1.8*0.92*0.1 | P57: 0.3312
A58: 56 | B58: HW-31 | C58: 花纹板-31 | D58: PL10*725 | E58: 件 | F58: 1 | L58: 109.8 | M58: 109.8 | O58: 1.8*0.73*0.1 | P58: 0.1314
A59: 57 | B59: HW-32 | C59: 花纹板-32 | D59: PL10*725 | E59: 件 | F59: 1 | L59: 109.8 | M59: 109.8 | O59: 1.8*0.73*0.1 | P59: 0.1314
A60: 58 | B60: HW-33 | C60: 花纹板-33 | D60: PL10*1695 | E60: 件 | F60: 2 | L60: 424.6 | M60: 849.2 | O60: 3.1*1.7*0.01 | P60: 0.1054
A61: 59 | B61: HW-34 | C61: 花纹板-34 | D61: PL10*2010 | E61: 件 | F61: 2 | L61: 532 | M61: 1064 | O61: 3.3*2.01*0.01 | P61: 0.1327
A62: 60 | B62: HW-35 | C62: 花纹板-35 | D62: PL8*1355 | E62: 件 | F62: 6 | L62: 368.7 | M62: 2212.2 | O62: 3.9*1.36*0.1 | P62: 3.1824
A63: 61 | B63: HW-36 | C63: 花纹板-36 | D63: PL8*1355 | E63: 件 | F63: 6 | L63: 368.7 | M63: 2212.2 | O63: 3.9*1.36*0.1 | P63: 3.1824
A64: 62 | B64: HW-37 | C64: 花纹板-37 | D64: PL8*1170 | E64: 件 | F64: 8 | L64: 318.6 | M64: 2548.8 | O64: 3.9*1.17*0.1 | P64: 3.6504
A65: 63 | B65: HW-38 | C65: 花纹板-38 | D65: PL8*1170 | E65: 件 | F65: 2 | L65: 296.5 | M65: 593 | O65: 3.9*1.17*0.1 | P65: 0.9126
A66: 64 | B66: HW-39 | C66: 花纹板-39 | D66: PL8*1170 | E66: 件 | F66: 2 | L66: 296.5 | M66: 593 | O66: 3.9*1.17*0.1 | P66: 0.9126
A67: 65 | B67: HW-40 | C67: 花纹板-40 | D67: PL8*920 | E67: 件 | F67: 4 | L67: 249.3 | M67: 997.2 | O67: 3.9*0.92*0.1 | P67: 1.4352
A68: 66 | B68: HW-41 | C68: 花纹板-41 | D68: PL8*920 | E68: 件 | F68: 8 | L68: 236 | M68: 1888 | O68: 3.9*0.92*0.1 | P68: 2.8704
A69: 67 | B69: HW-42 | C69: 花纹板-42 | D69: PL8*1340 | E69: 件 | F69: 12 | L69: 365.8 | M69: 4389.6 | O69: 3.9*1.34*0.1 | P69: 6.2712
A70: 68 | B70: HW-43 | C70: 花纹板-43 | D70: PL8*1360 | E70: 件 | F70: 12 | L70: 371.3 | M70: 4455.6 | O70: 3.9*1.36*0.1 | P70: 6.3648
A71: 69 | B71: HW-44 | C71: 花纹板-44 | D71: PL8*1240 | E71: 件 | F71: 6 | L71: 333.1 | M71: 1998.6 | O71: 3.9*1.24*0.1 | P71: 2.9016
A72: 70 | B72: HW-45 | C72: 花纹板-45 | D72: PL8*1240 | E72: 件 | F72: 6 | L72: 333.1 | M72: 1998.6 | O72: 3.9*1.24*0.1 | P72: 2.9016
A73: 71 | B73: HW-46 | C73: 花纹板-46 | D73: PL8*1190 | E73: 件 | F73: 12 | L73: 324.2 | M73: 3890.4 | O73: 3.9*1.19*0.1 | P73: 5.5692
A74: 72 | B74: HW-47 | C74: 花纹板-47 | D74: PL8*1795 | E74: 件 | F74: 4 | L74: 875.3 | M74: 3501.2 | O74: 7*1.8*0.1 | P74: 5.0400
A75: 73 | B75: HW-48 | C75: 花纹板-48 | D75: PL8*1795 | E75: 件 | F75: 1 | L75: 633.1 | M75: 633.1 | O75: 7*1.8*0.1 | P75: 1.2600
A76: 74 | B76: HW-49 | C76: 花纹板-49 | D76: PL8*1795 | E76: 件 | F76: 1 | L76: 633.1 | M76: 633.1 | O76: 7*1.8*0.1 | P76: 1.2600
A77: 75 | B77: HW-50 | C77: 花纹板-50 | D77: PL6*540 | E77: 件 | F77: 6 | L77: 89.9 | M77: 539.4 | O77: 3.09*0.54*0.1 | P77: 1.0012
A78: 76 | B78: HW-51 | C78: 花纹板-51 | D78: PL6*540 | E78: 件 | F78: 6 | L78: 89.9 | M78: 539.4 | O78: 3.09*0.54*0.1 | P78: 1.0012
A79: 77 | B79: HW-52 | C79: 花纹板-52 | D79: PL6*540 | E79: 件 | F79: 1 | L79: 92.5 | M79: 92.5 | O79: 3.19*0.54*0.1 | P79: 0.1723
A80: 78 | B80: HW-53 | C80: 花纹板-53 | D80: PL6*540 | E80: 件 | F80: 1 | L80: 92.5 | M80: 92.5 | O80: 3.19*0.54*0.1 | P80: 0.1723
A81: 79 | B81: HW-54 | C81: 花纹板-54 | D81: PL6*540 | E81: 件 | F81: 1 | L81: 93.8 | M81: 93.8 | O81: 3.24*0.54*0.1 | P81: 0.1750
A82: 80 | B82: HW-55 | C82: 花纹板-55 | D82: PL6*540 | E82: 件 | F82: 1 | L82: 93.8 | M82: 93.8 | O82: 3.24*0.54*0.1 | P82: 0.1750
A83: 81 | B83: HW-56 | C83: 花纹板-56 | D83: PL6*540 | E83: 件 | F83: 1 | L83: 67.9 | M83: 67.9 | O83: 2.4*0.54*0.1 | P83: 0.1296
A84: 82 | B84: HW-57 | C84: 花纹板-57 | D84: PL6*540 | E84: 件 | F84: 1 | L84: 67.9 | M84: 67.9 | O84: 2.4*0.54*0.1 | P84: 0.1296
A85: 83 | B85: HW-58 | C85: 花纹板-58 | D85: PL6*540 | E85: 件 | F85: 1 | L85: 66.7 | M85: 66.7 | O85: 2.34*0.54*0.1 | P85: 0.1264
A86: 84 | B86: HW-59 | C86: 花纹板-59 | D86: PL6*540 | E86: 件 | F86: 1 | L86: 66.7 | M86: 66.7 | O86: 2.34*0.54*0.1 | P86: 0.1264
A87: 85 | B87: HW-60 | C87: 花纹板-60 | D87: PL6*1380 | E87: 件 | F87: 3 | L87: 150.1 | M87: 450.3 | O87: 2.53*1.38*0.1 | P87: 1.0474
A88: 86 | B88: HW-61 | C88: 花纹板-61 | D88: PL6*1380 | E88: 件 | F88: 3 | L88: 150.1 | M88: 450.3 | O88: 2.53*1.38*0.1 | P88: 1.0474
A89: 87 | B89: HW-62 | C89: 花纹板-62 | D89: PL6*1380 | E89: 件 | F89: 1 | L89: 160.2 | M89: =L89*F89 -> 160.2 | O89: 2.73*1.38*0.1 | P89: 0.3767
A90: 88 | B90: HW-63 | C90: 花纹板-63 | D90: PL6*1380 | E90: 件 | F90: 2 | L90: 160.2 | M90: 320.4 | O90: 2.73*1.38*0.1 | P90: 0.7535
A91: 89 | B91: HW-64 | C91: 花纹板-64 | D91: PL6*1230 | E91: 件 | F91: 1 | L91: 80.4 | M91: 80.4 | O91: 1.27*1.23*0.1 | P91: 0.1562
A92: 90 | B92: HW-65 | C92: 花纹板-65 | D92: PL8*630 | E92: 件 | F92: 2 | L92: 314 | M92: 628 | O92: 7.68*0.63*0.01 | P92: 0.0968
A93: 91 | B93: JB-1 | C93: 夹板-1 | D93: PL12*145 | E93: 件 | F93: 280 | L93: 6.1 | M93: 1708 | O93: 0.46*0.15*0.012 | P93: 0.2318
A94: 92 | B94: LCC-1 | C94: 单轨吊斜撑-1 | D94: L75*6 | E94: 件 | F94: 2 | L94: 18.1 | M94: 36.2 | O94: 2.75*0.1*0.1 | P94: 0.0550
A95: 93 | B95: LCC-2 | C95: 单轨吊斜撑-2 | D95: L75*6 | E95: 件 | F95: 2 | L95: 18.1 | M95: 36.2 | O95: 2.75*0.1*0.1 | P95: 0.0550
A96: 94 | B96: LG-1 | C96: 栏杆-1 | D96: PIP50*3 | E96: 件 | F96: 300 | L96: 76.8 | M96: 23040 | O96: 6*1.1*0.05 | P96: 99.0000
A97: 95 | B97: LG-2 | C97: 栏杆-2 | D97: PIP50*3 | E97: 件 | F97: 233 | L97: 75.8 | M97: 17661.4 | O97: 6*1.05*0.05 | P97: 73.3950
A98: 96 | B98: LG-3 | C98: 栏杆-3 | D98: PIP50*3 | E98: 件 | F98: 30 | L98: 78.9 | M98: 2367 | O98: 6*1.2*0.05 | P98: 10.8000
A99: 97 | B99: LJB-1 | C99: 连接板-1 | D99: PL12*145 | E99: 件 | F99: 6 | L99: 5.6 | M99: 33.6 | O99: 0.42*0.15*0.012 | P99: 0.0045
A100: 98 | B100: LJB-2 | C100: 连接板-2 | D100: PL12*115 | E100: 件 | F100: 4 | L100: 3.2 | M100: 12.8 | O100: 0.3*0.12*0.012 | P100: 0.0017
A101: 99 | B101: LJB-3 | C101: 连接板-3 | D101: PL12*115 | E101: 件 | F101: 8 | L101: 2.5 | M101: 20 | O101: 0.23*0.12*0.012 | P101: 0.0026
A102: 100 | B102: LJB-4 | C102: 连接板-4 | D102: PL12*115 | E102: 件 | F102: 4 | L102: 4.9 | M102: 19.6 | O102: 0.45*0.12*0.012 | P102: 0.0026
A103: 101 | B103: LJB-5 | C103: 连接板-5 | D103: PL12*145 | E103: 件 | F103: 4 | L103: 4.3 | M103: 17.2 | O103: 0.32*0.15*0.012 | P103: 0.0023
A104: 102 | B104: LJB-6 | C104: 连接板-6 | D104: PL12*145 | E104: 件 | F104: 31 | L104: 3.7 | M104: 114.7 | O104: 0.27*0.15*0.012 | P104: 0.0151
A105: 103 | B105: LJB-7 | C105: 连接板-7 | D105: PL12*145 | E105: 件 | F105: 2 | L105: 3 | M105: 6 | O105: 0.22*0.15*0.012 | P105: 0.0008
A106: 104 | B106: LT-1 | C106: 拉条-1 | D106: D12 | E106: 件 | F106: 16 | L106: 2.1 | M106: 33.6 | O106: 2.6*0.1*0.1 | P106: 0.4160
A107: 105 | B107: LT-2 | C107: 拉条-2 | D107: D12 | E107: 件 | F107: 32 | L107: 1 | M107: 32 | O107: 1.35*0.012*0.012 | P107: 0.0062
A108: 106 | B108: LT-3 | C108: 拉条-3 | D108: D14 | E108: 件 | F108: 16 | L108: 1.4 | M108: 22.4 | O108: 1.35*0.014*0.014 | P108: 0.0042
A109: 107 | B109: PCC-1 | C109: 平台竖撑-1 | D109: HW125*125*6.5*9 | E109: 件 | F109: 24 | L109: 38.2 | M109: 916.8 | O109: 1.8*0.125*0.125 | P109: 0.6750
A110: 108 | B110: PCC-2 | C110: 平台竖撑-2 | D110: HW125*125*6.5*9 | E110: 件 | F110: 12 | L110: 45.8 | M110: 549.6 | O110: 2.15*0.125*0.125 | P110: 0.4031
A111: 109 | B111: PCC-3 | C111: 平台竖撑-3 | D111: HW125*125*6.5*9 | E111: 件 | F111: 4 | L111: 18.4 | M111: 73.6 | O111: 0.92*0.125*0.125 | P111: 0.0575
A112: 110 | B112: PCC-4 | C112: 平台竖撑-4 | D112: HW125*125*6.5*9 | E112: 件 | F112: 26 | L112: 16.8 | M112: 436.8 | O112: 0.85*0.125*0.125 | P112: 0.3453
A113: 111 | B113: PCC-5 | C113: 平台竖撑-5 | D113: HW125*125*6.5*9 | E113: 件 | F113: 26 | L113: 19.6 | M113: 509.6 | O113: 0.98*0.125*0.125 | P113: 0.3981
A114: 112 | B114: PCC-6 | C114: 平台竖撑-6 | D114: HW125*125*6.5*9 | E114: 件 | F114: 2 | L114: 14.9 | M114: 29.8 | O114: 0.78*0.125*0.125 | P114: 0.0244
A115: 113 | B115: PCC-7 | C115: 平台竖撑-7 | D115: HW125*125*6.5*9 | E115: 件 | F115: 6 | L115: 16.5 | M115: 99 | O115: 0.85*0.125*0.125 | P115: 0.0797
A116: 114 | B116: PCC-8 | C116: 平台竖撑-8 | D116: HW125*125*6.5*9 | E116: 件 | F116: 2 | L116: 15.1 | M116: 30.2 | O116: 0.79*0.125*0.125 | P116: 0.0247
A117: 115 | B117: PCC-9 | C117: 平台竖撑-9 | D117: HW125*125*6.5*9 | E117: 件 | F117: 2 | L117: 14.9 | M117: 29.8 | O117: 0.78*0.125*0.125 | P117: 0.0244
A118: 116 | B118: PCC-10 | C118: 平台竖撑-10 | D118: HW125*125*6.5*9 | E118: 件 | F118: 28 | L118: 19.8 | M118: 554.4 | O118: 0.99*0.125*0.125 | P118: 0.4331
A119: 117 | B119: PCC-11 | C119: 平台竖撑-11 | D119: HW125*125*6.5*9 | E119: 件 | F119: 2 | L119: 40.7 | M119: 81.4 | O119: 1.89*0.125*0.125 | P119: 0.0591
A120: 118 | B120: PCC-12 | C120: 平台竖撑-12 | D120: HW125*125*6.5*9 | E120: 件 | F120: 2 | L120: 46 | M120: 92 | O120: 2.12*0.125*0.125 | P120: 0.0663
A121: 119 | B121: PCC-13 | C121: 平台竖撑-13 | D121: HW125*125*6.5*9 | E121: 件 | F121: 2 | L121: 57 | M121: 114 | O121: 2.6*0.125*0.125 | P121: 0.0813
A122: 120 | B122: PCC-14 | C122: 平台竖撑-14 | D122: HW125*125*6.5*9 | E122: 件 | F122: 1 | L122: 31 | M122: 31 | O122: 1.47*0.125*0.125 | P122: 0.0230
A123: 121 | B123: PCC-15 | C123: 平台竖撑-15 | D123: HW125*125*6.5*9 | E123: 件 | F123: 9 | L123: 28 | M123: 252 | O123: 1.34*0.125*0.125 | P123: 0.1884
A124: 122 | B124: PCC-16 | C124: 平台竖撑-16 | D124: HW125*125*6.5*9 | E124: 件 | F124: 2 | L124: 18.2 | M124: 36.4 | O124: 0.92*0.125*0.125 | P124: 0.0288
A125: 123 | B125: PCC-17 | C125: 平台竖撑-17 | D125: HW125*125*6.5*9 | E125: 件 | F125: 4 | L125: 15.1 | M125: 60.4 | O125: 0.78*0.125*0.125 | P125: 0.0488
A126: 124 | B126: PCC-18 | C126: 平台竖撑-18 | D126: HW125*125*6.5*9 | E126: 件 | F126: 2 | L126: 25.9 | M126: 51.8 | O126: 1.25*0.125*0.125 | P126: 0.0391
A127: 125 | B127: PCC-19 | C127: 平台竖撑-19 | D127: HW125*125*6.5*9 | E127: 件 | F127: 2 | L127: 29.2 | M127: 58.4 | O127: 1.39*0.125*0.125 | P127: 0.0434
A128: 126 | B128: PTL-1 | C128: 平台梁-1 | D128: HM244*175*7*11 | E128: 件 | F128: 2 | L128: 215.8 | M128: 431.6 | O128: 4.39*0.28*0.29 | P128: 0.7129
A129: 127 | B129: PTL-2 | C129: 平台梁-2 | D129: HM244*175*7*11 | E129: 件 | F129: 2 | L129: 215.8 | M129: 431.6 | O129: 4.39*0.28*0.29 | P129: 0.7129
A130: 128 | B130: PTL-3 | C130: 平台梁-3 | D130: HM244*175*7*11 | E130: 件 | F130: 2 | L130: 208.4 | M130: 416.8 | O130: 4.45*0.28*0.29 | P130: 0.7227
A131: 129 | B131: PTL-4 | C131: 平台梁-4 | D131: HM244*175*7*11 | E131: 件 | F131: 2 | L131: 208.4 | M131: 416.8 | O131: 4.45*0.28*0.29 | P131: 0.7227
A132: 130 | B132: PTL-5 | C132: 平台梁-5 | D132: HM244*175*7*11 | E132: 件 | F132: 2 | L132: 263.1 | M132: 526.2 | O132: 5.74*0.28*0.29 | P132: 0.9322
A133: 131 | B133: PTL-6 | C133: 平台梁-6 | D133: HM244*175*7*11 | E133: 件 | F133: 2 | L133: 263.1 | M133: 526.2 | O133: 5.74*0.28*0.29 | P133: 0.9322
A134: 132 | B134: PTL-7 | C134: 平台梁-7 | D134: HM244*175*7*11 | E134: 件 | F134: 4 | L134: 170.1 | M134: 680.4 | O134: 3.65*0.18*0.29 | P134: 0.7621
A135: 133 | B135: PTL-8 | C135: 平台梁-8 | D135: HM244*175*7*11 | E135: 件 | F135: 4 | L135: 116.4 | M135: 465.6 | O135: 2.39*0.18*0.29 | P135: 0.4990
A136: 134 | B136: PTL-9 | C136: 平台梁-9 | D136: HM244*175*7*11 | E136: 件 | F136: 4 | L136: 114.2 | M136: 456.8 | O136: 2.34*0.18*0.29 | P136: 0.4886
A137: 135 | B137: PTL-10 | C137: 平台梁-10 | D137: HM550*300*11*18 | E137: 件 | F137: 1 | L137: 1257.3 | M137: 1257.3 | O137: 8.66*0.45*0.57 | P137: 2.2213
A138: 136 | B138: PTL-11 | C138: 平台梁-11 | D138: HM244*175*7*11 | E138: 件 | F138: 2 | L138: 313 | M138: 626 | O138: 7.28*0.27*0.25 | P138: 0.9828
A139: 137 | B139: PTL-12 | C139: 平台梁-12 | D139: HM244*175*7*11 | E139: 件 | F139: 1 | L139: 315.9 | M139: 315.9 | O139: 7.28*0.27*0.25 | P139: 0.4914
A140: 138 | B140: PTL-13 | C140: 平台梁-13 | D140: HM244*175*7*11 | E140: 件 | F140: 1 | L140: 315.9 | M140: 315.9 | O140: 7.28*0.27*0.25 | P140: 0.4914
A141: 139 | B141: PTL-14 | C141: 平台梁-14 | D141: HM244*175*7*11 | E141: 件 | F141: 1 | L141: 315.9 | M141: 315.9 | O141: 7.28*0.27*0.25 | P141: 0.4914
A142: 140 | B142: PTL-15 | C142: 平台梁-15 | D142: HM244*175*7*11 | E142: 件 | F142: 1 | L142: 315.9 | M142: 315.9 | O142: 7.28*0.27*0.25 | P142: 0.4914
A143: 141 | B143: PTL-16 | C143: 平台梁-16 | D143: HM244*175*7*11 | E143: 件 | F143: 1 | L143: 320.4 | M143: 320.4 | O143: 7.18*0.27*0.25 | P143: 0.4847
A144: 142 | B144: PTL-17 | C144: 平台梁-17 | D144: HM244*175*7*11 | E144: 件 | F144: 1 | L144: 320.4 | M144: 320.4 | O144: 7.18*0.27*0.25 | P144: 0.4847
A145: 143 | B145: PTL-18 | C145: 平台梁-18 | D145: HM244*175*7*11 | E145: 件 | F145: 1 | L145: 320.4 | M145: 320.4 | O145: 7.18*0.27*0.25 | P145: 0.4847
A146: 144 | B146: PTL-19 | C146: 平台梁-19 | D146: HM244*175*7*11 | E146: 件 | F146: 1 | L146: 320.4 | M146: 320.4 | O146: 7.18*0.27*0.25 | P146: 0.4847
A147: 145 | B147: PTL-20 | C147: 平台梁-20 | D147: HM244*175*7*11 | E147: 件 | F147: 1 | L147: 317.5 | M147: 317.5 | O147: 7.18*0.27*0.25 | P147: 0.4847
A148: 146 | B148: PTL-21 | C148: 平台梁-21 | D148: HM244*175*7*11 | E148: 件 | F148: 1 | L148: 317.5 | M148: 317.5 | O148: 7.18*0.27*0.25 | P148: 0.4847
A149: 147 | B149: PTL-22 | C149: 平台梁-22 | D149: HM244*175*7*11 | E149: 件 | F149: 1 | L149: 318.2 | M149: 318.2 | O149: 7.28*0.22*0.25 | P149: 0.4004
A150: 148 | B150: PTL-23 | C150: 平台梁-23 | D150: HM244*175*7*11 | E150: 件 | F150: 1 | L150: 318.2 | M150: 318.2 | O150: 7.28*0.22*0.25 | P150: 0.4004
A151: 149 | B151: PTL-24 | C151: 平台梁-24 | D151: HM244*175*7*11 | E151: 件 | F151: 1 | L151: 318.2 | M151: 318.2 | O151: 7.28*0.22*0.25 | P151: 0.4004
A152: 150 | B152: PTL-25 | C152: 平台梁-25 | D152: HM244*175*7*11 | E152: 件 | F152: 1 | L152: 318.2 | M152: 318.2 | O152: 7.28*0.22*0.25 | P152: 0.4004
A153: 151 | B153: PTL-26 | C153: 平台梁-26 | D153: HM244*175*7*11 | E153: 件 | F153: 1 | L153: 315.3 | M153: =L153*F153 -> 315.3 | O153: 7.28*0.22*0.25 | P153: 0.4004
A154: 152 | B154: PTL-27 | C154: 平台梁-27 | D154: HM244*175*7*11 | E154: 件 | F154: 1 | L154: 315.3 | M154: 315.3 | O154: 7.28*0.22*0.25 | P154: 0.4004
A155: 153 | B155: PTL-28 | C155: 平台梁-28 | D155: HM244*175*7*11 | E155: 件 | F155: 1 | L155: 321.6 | M155: 321.6 | O155: 7.43*0.22*0.25 | P155: 0.4087
A156: 154 | B156: PTL-29 | C156: 平台梁-29 | D156: HM244*175*7*11 | E156: 件 | F156: 1 | L156: 321.6 | M156: 321.6 | O156: 7.43*0.22*0.25 | P156: 0.4087
A157: 155 | B157: PTL-30 | C157: 平台梁-30 | D157: HM244*175*7*11 | E157: 件 | F157: 2 | L157: 198.4 | M157: 396.8 | O157: 4.45*0.28*0.25 | P157: 0.6230
A158: 156 | B158: PTL-31 | C158: 平台梁-31 | D158: HM244*175*7*11 | E158: 件 | F158: 2 | L158: 198.4 | M158: 396.8 | O158: 4.45*0.28*0.25 | P158: 0.6230
A159: 157 | B159: PTL-32 | C159: 平台梁-32 | D159: HM390*300*10*16 | E159: 件 | F159: 8 | L159: 878.4 | M159: 7027.2 | O159: 8.14*0.43*0.34 | P159: 9.5205
A160: 158 | B160: PTL-33 | C160: 平台梁-33 | D160: HM550*300*11*18 | E160: 件 | F160: 1 | L160: 1257.3 | M160: 1257.3 | O160: 8.66*0.45*0.57 | P160: 2.2213
A161: 159 | B161: PTL-34 | C161: 平台梁-34 | D161: HM390*300*10*16 | E161: 件 | F161: 1 | L161: 460.6 | M161: 460.6 | O161: 3.53*0.52*0.41 | P161: 0.7526
A162: 160 | B162: PTL-35 | C162: 平台梁-35 | D162: HM390*300*10*16 | E162: 件 | F162: 1 | L162: 460.6 | M162: 460.6 | O162: 3.53*0.52*0.41 | P162: 0.7526
A163: 161 | B163: PTL-36 | C163: 平台梁-36 | D163: HM390*300*10*16 | E163: 件 | F163: 1 | L163: 452.9 | M163: 452.9 | O163: 3.53*0.52*0.41 | P163: 0.7526
A164: 162 | B164: PTL-37 | C164: 平台梁-37 | D164: HM390*300*10*16 | E164: 件 | F164: 1 | L164: 452.9 | M164: 452.9 | O164: 3.53*0.52*0.41 | P164: 0.7526
A165: 163 | B165: PTL-38 | C165: 平台梁-38 | D165: HM390*300*10*16 | E165: 件 | F165: 1 | L165: 425.3 | M165: 425.3 | O165: 3.53*0.52*0.39 | P165: 0.7159
A166: 164 | B166: PTL-39 | C166: 平台梁-39 | D166: HM390*300*10*16 | E166: 件 | F166: 1 | L166: 425.3 | M166: 425.3 | O166: 3.53*0.52*0.39 | P166: 0.7159
A167: 165 | B167: PTL-40 | C167: 平台梁-40 | D167: HM390*300*10*16 | E167: 件 | F167: 3 | L167: 708.8 | M167: 2126.4 | O167: 6.79*0.3*0.39 | P167: 2.3833
A168: 166 | B168: PTL-41 | C168: 平台梁-41 | D168: HM390*300*10*16 | E168: 件 | F168: 3 | L168: 708.8 | M168: 2126.4 | O168: 6.79*0.3*0.39 | P168: 2.3833
A169: 167 | B169: PTL-42 | C169: 平台梁-42 | D169: HM390*300*10*16 | E169: 件 | F169: 2 | L169: 779.5 | M169: 1559 | O169: 7.01*0.3*0.39 | P169: 1.6403
A170: 168 | B170: PTL-43 | C170: 平台梁-43 | D170: HM390*300*10*16 | E170: 件 | F170: 2 | L170: 779.5 | M170: 1559 | O170: 7.01*0.3*0.39 | P170: 1.6403
A171: 169 | B171: PTL-44 | C171: 平台梁-44 | D171: HM390*300*10*16 | E171: 件 | F171: 1 | L171: 781.9 | M171: 781.9 | O171: 7.01*0.4*0.39 | P171: 1.0936
A172: 170 | B172: PTL-45 | C172: 平台梁-45 | D172: HM390*300*10*16 | E172: 件 | F172: 1 | L172: 781.9 | M172: 781.9 | O172: 7.01*0.4*0.39 | P172: 1.0936
A173: 171 | B173: PTL-46 | C173: 平台梁-46 | D173: HM390*300*10*16 | E173: 件 | F173: 1 | L173: 772.1 | M173: 772.1 | O173: 6.65*0.3*1.07 | P173: 2.1347
A174: 172 | B174: PTL-47 | C174: 平台梁-47 | D174: HM390*300*10*16 | E174: 件 | F174: 1 | L174: 772.1 | M174: 772.1 | O174: 6.65*0.3*1.07 | P174: 2.1347
A175: 173 | B175: PTL-48 | C175: 平台梁-48 | D175: HM390*300*10*16 | E175: 件 | F175: 1 | L175: 752.6 | M175: 752.6 | O175: 6.65*0.3*1.07 | P175: 2.1347
A176: 174 | B176: PTL-49 | C176: 平台梁-49 | D176: HM390*300*10*16 | E176: 件 | F176: 1 | L176: 752.6 | M176: 752.6 | O176: 6.65*0.3*1.07 | P176: 2.1347
A177: 175 | B177: PTL-50 | C177: 平台梁-50 | D177: HM550*300*11*18 | E177: 件 | F177: 1 | L177: 1207.2 | M177: 1207.2 | O177: 8.66*0.41*0.55 | P177: 1.9528
A178: 176 | B178: PTL-51 | C178: 平台梁-51 | D178: HM550*300*11*18 | E178: 件 | F178: 1 | L178: 1207.2 | M178: 1207.2 | O178: 8.66*0.41*0.55 | P178: 1.9528
A179: 177 | B179: PTL-52 | C179: 平台梁-52 | D179: HM390*300*10*16 | E179: 件 | F179: 6 | L179: 148.7 | M179: 892.2 | O179: 1.25*0.51*0.39 | P179: 1.4918
A180: 178 | B180: PTL-53 | C180: 平台梁-53 | D180: HM390*300*10*16 | E180: 件 | F180: 6 | L180: 148.7 | M180: 892.2 | O180: 1.25*0.51*0.39 | P180: 1.4918
A181: 179 | B181: PTL-54 | C181: 平台梁-54 | D181: HM390*300*10*16 | E181: 件 | F181: 8 | L181: 140.6 | M181: 1124.8 | O181: 1.26*0.41*0.39 | P181: 1.6118
A182: 180 | B182: PTL-55 | C182: 平台梁-55 | D182: HM390*300*10*16 | E182: 件 | F182: 2 | L182: 139.8 | M182: 279.6 | O182: 1.26*0.41*0.39 | P182: 0.4029
A183: 181 | B183: PTL-56 | C183: 平台梁-56 | D183: HM390*300*10*16 | E183: 件 | F183: 2 | L183: 139.8 | M183: 279.6 | O183: 1.26*0.41*0.39 | P183: 0.4029
A184: 182 | B184: PTL-57 | C184: 平台梁-57 | D184: HM390*300*10*16 | E184: 件 | F184: 1 | L184: 749.3 | M184: 749.3 | O184: 7.01*0.4*0.39 | P184: 1.0936
A185: 183 | B185: PTL-58 | C185: 平台梁-58 | D185: HM390*300*10*16 | E185: 件 | F185: 1 | L185: 749.3 | M185: 749.3 | O185: 7.01*0.4*0.39 | P185: 1.0936
A186: 184 | B186: PTL-59 | C186: 平台梁-59 | D186: HM390*300*10*16 | E186: 件 | F186: 1 | L186: 749.3 | M186: 749.3 | O186: 7.01*0.4*0.39 | P186: 1.0936
A187: 185 | B187: PTL-60 | C187: 平台梁-60 | D187: HM390*300*10*16 | E187: 件 | F187: 1 | L187: 749.3 | M187: 749.3 | O187: 7.01*0.4*0.39 | P187: 1.0936
A188: 186 | B188: PTL-61 | C188: 平台梁-61 | D188: HM390*300*10*16 | E188: 件 | F188: 1 | L188: 749.3 | M188: 749.3 | O188: 7.01*0.4*0.39 | P188: 1.0936
A189: 187 | B189: PTL-62 | C189: 平台梁-62 | D189: HM390*300*10*16 | E189: 件 | F189: 1 | L189: 749.3 | M189: 749.3 | O189: 7.01*0.4*0.39 | P189: 1.0936
A190: 188 | B190: PTL-63 | C190: 平台梁-63 | D190: HM390*300*10*16 | E190: 件 | F190: 1 | L190: 749.3 | M190: 749.3 | O190: 7.01*0.4*0.39 | P190: 1.0936
A191: 189 | B191: PTL-64 | C191: 平台梁-64 | D191: HM390*300*10*16 | E191: 件 | F191: 1 | L191: 749.3 | M191: 749.3 | O191: 7.01*0.4*0.39 | P191: 1.0936
A192: 190 | B192: PTL-65 | C192: 平台梁-65 | D192: HM390*300*10*16 | E192: 件 | F192: 1 | L192: 750.8 | M192: 750.8 | O192: 7.01*0.4*0.39 | P192: 1.0936
A193: 191 | B193: PTL-66 | C193: 平台梁-66 | D193: HM390*300*10*16 | E193: 件 | F193: 1 | L193: 750.8 | M193: 750.8 | O193: 7.01*0.4*0.39 | P193: 1.0936
A194: 192 | B194: PTL-67 | C194: 平台梁-67 | D194: HM390*300*10*16 | E194: 件 | F194: 1 | L194: 750.8 | M194: 750.8 | O194: 7.01*0.4*0.39 | P194: 1.0936
A195: 193 | B195: PTL-68 | C195: 平台梁-68 | D195: HM390*300*10*16 | E195: 件 | F195: 1 | L195: 750.8 | M195: 750.8 | O195: 7.01*0.4*0.39 | P195: 1.0936
A196: 194 | B196: PTL-69 | C196: 平台梁-69 | D196: HM390*300*10*16 | E196: 件 | F196: 1 | L196: 750.8 | M196: 750.8 | O196: 7.01*0.4*0.39 | P196: 1.0936
A197: 195 | B197: PTL-70 | C197: 平台梁-70 | D197: HM390*300*10*16 | E197: 件 | F197: 1 | L197: 750.8 | M197: 750.8 | O197: 7.01*0.4*0.39 | P197: 1.0936
A198: 196 | B198: PTL-71 | C198: 平台梁-71 | D198: HM390*300*10*16 | E198: 件 | F198: 1 | L198: 750.8 | M198: 750.8 | O198: 7.01*0.4*0.39 | P198: 1.0936
A199: 197 | B199: PTL-72 | C199: 平台梁-72 | D199: HM390*300*10*16 | E199: 件 | F199: 1 | L199: 750.8 | M199: 750.8 | O199: 7.01*0.4*0.39 | P199: 1.0936
A200: 198 | B200: PTL-73 | C200: 平台梁-73 | D200: HM390*300*10*16 | E200: 件 | F200: 1 | L200: 811.5 | M200: 811.5 | O200: 7.01*0.4*0.39 | P200: 1.0936
... 823 more rows

Sheet 浮选钢格栅
D1: 出口厄瓜多尔浮选厂房物资清单
A2: 序号 | B2: 英文名称 | C2: 中文名称 | D2: 规格型号 | E2: 单位 | F2: 数量 | G2: 单价 | H2: 总金额 | I2: 箱号 | J2: 件数 | K2: 发货状态 | L2: 单重（kg) | M2: 净重（kg） | N2: 毛重 （kg） | O2: 长×宽×高（m） | P2: 体积（m3) | Q2: HS编码
A3: 1 | B3: 600踏步-1 | C3: 600踏步 | D3: PL4.5*600 | E3: 件 | F3: 100 | L3: 7.2 | M3: =L3*F3 -> 720 | O3: 0.6*0.23*0.11 | P3: 1.5180
A4: 2 | B4: 800踏步-1 | C4: 800踏步 | D4: PL4.5*800 | E4: 件 | F4: 100 | L4: 9.6 | M4: 960 | O4: 0.8*0.23*0.11 | P4: 2.0240
A5: 3 | B5: 1000踏步-1 | C5: 1000踏步 | D5: PL4.5*1000 | E5: 件 | F5: 20 | L5: 12.7 | M5: 254 | O5: 1.0*0.23*0.13 | P5: 0.5980
A6: 4 | B6: B-1 | C6: 板-1 | D6: PL8*60 | E6: 件 | F6: 8 | L6: 0.2 | M6: 1.6 | O6: 0.06*0.06*0.008 | P6: 0.0002
A7: 5 | B7: CC-1 | C7: 竖支撑-1 | D7: L75*6 | E7: 件 | F7: 272 | L7: 12.3 | M7: 3345.6 | O7: 0.85*0.16*0.15 | P7: 5.5488
A8: 6 | B8: CC-2 | C8: 竖支撑-2 | D8: L75*6 | E8: 件 | F8: 24 | L8: 12.3 | M8: 295.2 | O8: 0.85*0.16*0.15 | P8: 0.4896
A9: 7 | B9: CC-3 | C9: 竖支撑-3 | D9: L75*6 | E9: 件 | F9: 22 | L9: 12.3 | M9: 270.6 | O9: 0.85*0.16*0.15 | P9: 0.4488
A10: 8 | B10: CC-4 | C10: 竖支撑-4 | D10: L75*6 | E10: 件 | F10: 28 | L10: 12.3 | M10: 344.4 | O10: 0.85*0.16*0.15 | P10: 0.5712
A11: 9 | B11: CC-5 | C11: 竖支撑-5 | D11: L75*6 | E11: 件 | F11: 28 | L11: 12.3 | M11: 344.4 | O11: 0.85*0.16*0.15 | P11: 0.5712
A12: 10 | B12: CG-1 | C12: 撑杆-1 | D12: PIP32*2.5 | E12: 件 | F12: 16 | L12: 2.1 | M12: 33.6 | O12: 1.2*0.035*0.035 | P12: 0.0235
A13: 11 | B13: DB-1 | C13: 垫板-1 | D13: PL28*250 | E13: 件 | F13: 4 | L13: 20.9 | M13: 83.6 | O13: 0.38*0.25*0.03 | P13: 0.0114
A14: 12 | B14: DB-2 | C14: 垫板-2 | D14: PL40*150 | E14: 件 | F14: 8 | L14: 7.1 | M14: 56.8 | O14: 0.15*0.15*0.04 | P14: 0.0072
A15: 13 | B15: DGD-1 | C15: 单轨吊-1 | D15: I45A | E15: 件 | F15: 2 | L15: 748.9 | M15: 1497.8 | O15: 9.42*0.22*0.6 | P15: 2.4869
A16: 14 | B16: DP-1 | C16: 垫片-1 | D16: PL20*80 | E16: 件 | F16: 64 | L16: 1 | M16: 64 | O16: 0.08*0.08*0.02 | P16: 0.0082
A17: 15 | B17: DP-2 | C17: 垫片-2 | D17: PL22*75 | E17: 件 | F17: 10 | L17: 1 | M17: 10 | O17: 0.08*0.08*0.022 | P17: 0.0014
A18: 16 | B18: DP-3 | C18: 垫片-3 | D18: PL16*70 | E18: 件 | F18: 408 | L18: 0.6 | M18: 244.8 | O18: 0.07*0.07*0.016 | P18: 0.0320
A19: 17 | B19: DP-4 | C19: 垫片-4 | D19: PL28*70 | E19: 件 | F19: 48 | L19: 1.1 | M19: 52.8 | O19: 0.07*0.07*0.028 | P19: 0.0066
A20: 18 | B20: DP-5 | C20: 垫片-5 | D20: PL20*100 | E20: 件 | F20: 112 | L20: 1.6 | M20: 179.2 | O20: 0.1*0.1*0.02 | P20: 0.0224
A21: 19 | B21: DP-6 | C21: 垫片-6 | D21: PL18*70 | E21: 件 | F21: 160 | L21: 0.7 | M21: 112 | O21: 0.07*0.07*0.018 | P21: 0.0141
A22: 20 | B22: DP-7 | C22: 垫片-7 | D22: PL22*75 | E22: 件 | F22: 90 | L22: 1 | M22: 90 | O22: 0.08*0.08*0.022 | P22: 0.0127
A23: 21 | B23: DWJG-1 | C23: 打瓦角钢-1 | D23: L50*5 | E23: 件 | F23: 25 | L23: 275.9 | M23: 551.8 | O23: 0.05*0.05*6 | P23: 0.3750
A24: 22 | B24: DWJG-2 | C24: 打瓦角钢-2 | D24: L50*5 | E24: 件 | F24: 5 | L24: 29.1 | M24: 116.4 | O24: 0.05*0.05*6 | P24: 0.0750
A25: 23 | B25: GT-1 | C25: 钢梯-1 | D25: C18A | E25: 件 | F25: 2 | L25: 644.8 | M25: =L25*F25 -> 1289.6 | O25: 6.6*0.9*0.18 | P25: 2.1384
A26: 24 | B26: GT-2 | C26: 钢梯-2 | D26: HM294*200*8*12 | E26: 件 | F26: 2 | L26: 1472.7 | M26: 2945.4 | O26: 8.3*1.1*0.3 | P26: 5.4780
A27: 25 | B27: GT-3 | C27: 钢梯-3 | D27: HM294*200*8*12 | E27: 件 | F27: 2 | L27: 1423.2 | M27: 2846.4 | O27: 8.1*1.1*0.3 | P27: 5.3460
A28: 26 | B28: HW-1 | C28: 花纹板-1 | D28: PL10*1400 | E28: 件 | F28: 1 | L28: 424.2 | M28: 424.2 | O28: 3.84*1.4*0.1 | P28: 0.5376
A29: 27 | B29: HW-2 | C29: 花纹板-2 | D29: PL10*1400 | E29: 件 | F29: 1 | L29: 424.2 | M29: 424.2 | O29: 3.84*1.4*0.1 | P29: 0.5376
A30: 28 | B30: HW-3 | C30: 花纹板-3 | D30: PL10*2430 | E30: 件 | F30: 2 | L30: 688.4 | M30: 1376.8 | O30: 3.84*2.43*0.01 | P30: 0.1866
A31: 29 | B31: HW-4 | C31: 花纹板-4 | D31: PL10*1785 | E31: 件 | F31: 2 | L31: 177.6 | M31: 355.2 | O31: 3.2*1.8*0.01 | P31: 0.1152
A32: 30 | B32: HW-5 | C32: 花纹板-5 | D32: PL10*1035 | E32: 件 | F32: 2 | L32: 190.9 | M32: 381.8 | O32: 2.16*1.04*0.1 | P32: 0.4493
A33: 31 | B33: HW-6 | C33: 花纹板-6 | D33: PL10*1035 | E33: 件 | F33: 2 | L33: 190.9 | M33: 381.8 | O33: 2.16*1.04*0.1 | P33: 0.4493
A34: 32 | B34: HW-7 | C34: 花纹板-7 | D34: PL10*915 | E34: 件 | F34: 1 | L34: 166.8 | M34: 166.8 | O34: 2.16*0.92*0.1 | P34: 0.1987
A35: 33 | B35: HW-8 | C35: 花纹板-8 | D35: PL10*915 | E35: 件 | F35: 1 | L35: 166.8 | M35: 166.8 | O35: 2.16*0.92*0.1 | P35: 0.1987
A36: 34 | B36: HW-9 | C36: 花纹板-9 | D36: PL10*915 | E36: 件 | F36: 3 | L36: 170.4 | M36: 511.2 | O36: 2.16*0.92*0.1 | P36: 0.5962
A37: 35 | B37: HW-10 | C37: 花纹板-10 | D37: PL10*915 | E37: 件 | F37: 3 | L37: 170.4 | M37: 511.2 | O37: 2.16*0.92*0.1 | P37: 0.5962
A38: 36 | B38: HW-11 | C38: 花纹板-11 | D38: PL10*990 | E38: 件 | F38: 2 | L38: 185.5 | M38: 371 | O38: 2.16*0.99*0.1 | P38: 0.4277
A39: 37 | B39: HW-12 | C39: 花纹板-12 | D39: PL10*990 | E39: 件 | F39: 2 | L39: 185.5 | M39: 371 | O39: 2.16*0.99*0.1 | P39: 0.4277
A40: 38 | B40: HW-13 | C40: 花纹板-13 | D40: PL10*1035 | E40: 件 | F40: 4 | L40: 170.4 | M40: 681.6 | O40: 1.92*1.04*0.1 | P40: 0.7987
A41: 39 | B41: HW-14 | C41: 花纹板-14 | D41: PL10*1035 | E41: 件 | F41: 2 | L41: 170.4 | M41: 340.8 | O41: 1.92*1.04*0.1 | P41: 0.3994
A42: 40 | B42: HW-15 | C42: 花纹板-15 | D42: PL10*1035 | E42: 件 | F42: 2 | L42: 170.4 | M42: 340.8 | O42: 1.92*1.04*0.1 | P42: 0.3994
A43: 41 | B43: HW-16 | C43: 花纹板-16 | D43: PL10*915 | E43: 件 | F43: 4 | L43: 152.3 | M43: 609.2 | O43: 1.92*0.92*0.1 | P43: 0.7066
A44: 42 | B44: HW-17 | C44: 花纹板-17 | D44: PL10*915 | E44: 件 | F44: 2 | L44: 152.3 | M44: 304.6 | O44: 1.92*0.92*0.1 | P44: 0.3533
A45: 43 | B45: HW-18 | C45: 花纹板-18 | D45: PL10*915 | E45: 件 | F45: 2 | L45: 152.3 | M45: 304.6 | O45: 1.92*0.92*0.1 | P45: 0.3533
A46: 44 | B46: HW-19 | C46: 花纹板-19 | D46: PL10*1035 | E46: 件 | F46: 2 | L46: 113.4 | M46: 226.8 | O46: 1.32*1.04*0.1 | P46: 0.2746
A47: 45 | B47: HW-20 | C47: 花纹板-20 | D47: PL10*1035 | E47: 件 | F47: 2 | L47: 112.5 | M47: 225 | O47: 1.32*1.04*0.1 | P47: 0.2746
A48: 46 | B48: HW-21 | C48: 花纹板-21 | D48: PL10*915 | E48: 件 | F48: 8 | L48: 100.8 | M48: 806.4 | O48: 1.32*0.92*0.1 | P48: 0.9715
A49: 47 | B49: HW-22 | C49: 花纹板-22 | D49: PL10*990 | E49: 件 | F49: 4 | L49: 109.4 | M49: 437.6 | O49: 1.32*0.99*0.1 | P49: 0.5227
A50: 48 | B50: HW-23 | C50: 花纹板-23 | D50: PL10*1035 | E50: 件 | F50: 2 | L50: 111.3 | M50: 222.6 | O50: 1.29*1.04*0.1 | P50: 0.2683
A51: 49 | B51: HW-24 | C51: 花纹板-24 | D51: PL10*1035 | E51: 件 | F51: 2 | L51: 110.4 | M51: 220.8 | O51: 1.29*1.04*0.1 | P51: 0.2683
A52: 50 | B52: HW-25 | C52: 花纹板-25 | D52: PL10*915 | E52: 件 | F52: 8 | L52: 98.9 | M52: 791.2 | O52: 1.29*0.92*0.1 | P52: 0.9494
A53: 51 | B53: HW-26 | C53: 花纹板-26 | D53: PL10*990 | E53: 件 | F53: 4 | L53: 107.4 | M53: 429.6 | O53: 1.29*0.99*0.1 | P53: 0.5108
A54: 52 | B54: HW-27 | C54: 花纹板-27 | D54: PL10*1035 | E54: 件 | F54: 2 | L54: 156.1 | M54: 312.2 | O54: 1.8*1.04*0.1 | P54: 0.3744
A55: 53 | B55: HW-28 | C55: 花纹板-28 | D55: PL10*1035 | E55: 件 | F55: 2 | L55: 156.1 | M55: 312.2 | O55: 1.8*1.04*0.1 | P55: 0.3744
A56: 54 | B56: HW-29 | C56: 花纹板-29 | D56: PL10*915 | E56: 件 | F56: 2 | L56: 139.6 | M56: 279.2 | O56: 1.8*0.92*0.1 | P56: 0.3312
A57: 55 | B57: HW-30 | C57: 花纹板-30 | D57: PL10*915 | E57: 件 | F57: 2 | L57: 139.6 | M57: 279.2 | O57: 1.8*0.92*0.1 | P57: 0.3312
A58: 56 | B58: HW-31 | C58: 花纹板-31 | D58: PL10*725 | E58: 件 | F58: 1 | L58: 109.8 | M58: 109.8 | O58: 1.8*0.73*0.1 | P58: 0.1314
A59: 57 | B59: HW-32 | C59: 花纹板-32 | D59: PL10*725 | E59: 件 | F59: 1 | L59: 109.8 | M59: 109.8 | O59: 1.8*0.73*0.1 | P59: 0.1314
A60: 58 | B60: HW-33 | C60: 花纹板-33 | D60: PL10*1695 | E60: 件 | F60: 2 | L60: 424.6 | M60: 849.2 | O60: 3.1*1.7*0.01 | P60: 0.1054
A61: 59 | B61: HW-34 | C61: 花纹板-34 | D61: PL10*2010 | E61: 件 | F61: 2 | L61: 532 | M61: 1064 | O61: 3.3*2.01*0.01 | P61: 0.1327
A62: 60 | B62: HW-35 | C62: 花纹板-35 | D62: PL8*1355 | E62: 件 | F62: 6 | L62: 368.7 | M62: 2212.2 | O62: 3.9*1.36*0.1 | P62: 3.1824
A63: 61 | B63: HW-36 | C63: 花纹板-36 | D63: PL8*1355 | E63: 件 | F63: 6 | L63: 368.7 | M63: 2212.2 | O63: 3.9*1.36*0.1 | P63: 3.1824
A64: 62 | B64: HW-37 | C64: 花纹板-37 | D64: PL8*1170 | E64: 件 | F64: 8 | L64: 318.6 | M64: 2548.8 | O64: 3.9*1.17*0.1 | P64: 3.6504
A65: 63 | B65: HW-38 | C65: 花纹板-38 | D65: PL8*1170 | E65: 件 | F65: 2 | L65: 296.5 | M65: 593 | O65: 3.9*1.17*0.1 | P65: 0.9126
A66: 64 | B66: HW-39 | C66: 花纹板-39 | D66: PL8*1170 | E66: 件 | F66: 2 | L66: 296.5 | M66: 593 | O66: 3.9*1.17*0.1 | P66: 0.9126
A67: 65 | B67: HW-40 | C67: 花纹板-40 | D67: PL8*920 | E67: 件 | F67: 4 | L67: 249.3 | M67: 997.2 | O67: 3.9*0.92*0.1 | P67: 1.4352
A68: 66 | B68: HW-41 | C68: 花纹板-41 | D68: PL8*920 | E68: 件 | F68: 8 | L68: 236 | M68: 1888 | O68: 3.9*0.92*0.1 | P68: 2.8704
A69: 67 | B69: HW-42 | C69: 花纹板-42 | D69: PL8*1340 | E69: 件 | F69: 12 | L69: 365.8 | M69: 4389.6 | O69: 3.9*1.34*0.1 | P69: 6.2712
A70: 68 | B70: HW-43 | C70: 花纹板-43 | D70: PL8*1360 | E70: 件 | F70: 12 | L70: 371.3 | M70: 4455.6 | O70: 3.9*1.36*0.1 | P70: 6.3648
A71: 69 | B71: HW-44 | C71: 花纹板-44 | D71: PL8*1240 | E71: 件 | F71: 6 | L71: 333.1 | M71: 1998.6 | O71: 3.9*1.24*0.1 | P71: 2.9016
A72: 70 | B72: HW-45 | C72: 花纹板-45 | D72: PL8*1240 | E72: 件 | F72: 6 | L72: 333.1 | M72: 1998.6 | O72: 3.9*1.24*0.1 | P72: 2.9016
A73: 71 | B73: HW-46 | C73: 花纹板-46 | D73: PL8*1190 | E73: 件 | F73: 12 | L73: 324.2 | M73: 3890.4 | O73: 3.9*1.19*0.1 | P73: 5.5692
A74: 72 | B74: HW-47 | C74: 花纹板-47 | D74: PL8*1795 | E74: 件 | F74: 4 | L74: 875.3 | M74: 3501.2 | O74: 7*1.8*0.1 | P74: 5.0400
A75: 73 | B75: HW-48 | C75: 花纹板-48 | D75: PL8*1795 | E75: 件 | F75: 1 | L75: 633.1 | M75: 633.1 | O75: 7*1.8*0.1 | P75: 1.2600
A76: 74 | B76: HW-49 | C76: 花纹板-49 | D76: PL8*1795 | E76: 件 | F76: 1 | L76: 633.1 | M76: 633.1 | O76: 7*1.8*0.1 | P76: 1.2600
A77: 75 | B77: HW-50 | C77: 花纹板-50 | D77: PL6*540 | E77: 件 | F77: 6 | L77: 89.9 | M77: 539.4 | O77: 3.09*0.54*0.1 | P77: 1.0012
A78: 76 | B78: HW-51 | C78: 花纹板-51 | D78: PL6*540 | E78: 件 | F78: 6 | L78: 89.9 | M78: 539.4 | O78: 3.09*0.54*0.1 | P78: 1.0012
A79: 77 | B79: HW-52 | C79: 花纹板-52 | D79: PL6*540 | E79: 件 | F79: 1 | L79: 92.5 | M79: 92.5 | O79: 3.19*0.54*0.1 | P79: 0.1723
A80: 78 | B80: HW-53 | C80: 花纹板-53 | D80: PL6*540 | E80: 件 | F80: 1 | L80: 92.5 | M80: 92.5 | O80: 3.19*0.54*0.1 | P80: 0.1723
A81: 79 | B81: HW-54 | C81: 花纹板-54 | D81: PL6*540 | E81: 件 | F81: 1 | L81: 93.8 | M81: 93.8 | O81: 3.24*0.54*0.1 | P81: 0.1750
A82: 80 | B82: HW-55 | C82: 花纹板-55 | D82: PL6*540 | E82: 件 | F82: 1 | L82: 93.8 | M82: 93.8 | O82: 3.24*0.54*0.1 | P82: 0.1750
A83: 81 | B83: HW-56 | C83: 花纹板-56 | D83: PL6*540 | E83: 件 | F83: 1 | L83: 67.9 | M83: 67.9 | O83: 2.4*0.54*0.1 | P83: 0.1296
A84: 82 | B84: HW-57 | C84: 花纹板-57 | D84: PL6*540 | E84: 件 | F84: 1 | L84: 67.9 | M84: 67.9 | O84: 2.4*0.54*0.1 | P84: 0.1296
A85: 83 | B85: HW-58 | C85: 花纹板-58 | D85: PL6*540 | E85: 件 | F85: 1 | L85: 66.7 | M85: 66.7 | O85: 2.34*0.54*0.1 | P85: 0.1264
A86: 84 | B86: HW-59 | C86: 花纹板-59 | D86: PL6*540 | E86: 件 | F86: 1 | L86: 66.7 | M86: 66.7 | O86: 2.34*0.54*0.1 | P86: 0.1264
A87: 85 | B87: HW-60 | C87: 花纹板-60 | D87: PL6*1380 | E87: 件 | F87: 3 | L87: 150.1 | M87: 450.3 | O87: 2.53*1.38*0.1 | P87: 1.0474
A88: 86 | B88: HW-61 | C88: 花纹板-61 | D88: PL6*1380 | E88: 件 | F88: 3 | L88: 150.1 | M88: 450.3 | O88: 2.53*1.38*0.1 | P88: 1.0474
A89: 87 | B89: HW-62 | C89: 花纹板-62 | D89: PL6*1380 | E89: 件 | F89: 1 | L89: 160.2 | M89: =L89*F89 -> 160.2 | O89: 2.73*1.38*0.1 | P89: 0.3767
A90: 88 | B90: HW-63 | C90: 花纹板-63 | D90: PL6*1380 | E90: 件 | F90: 2 | L90: 160.2 | M90: 320.4 | O90: 2.73*1.38*0.1 | P90: 0.7535
A91: 89 | B91: HW-64 | C91: 花纹板-64 | D91: PL6*1230 | E91: 件 | F91: 1 | L91: 80.4 | M91: 80.4 | O91: 1.27*1.23*0.1 | P91: 0.1562
A92: 90 | B92: HW-65 | C92: 花纹板-65 | D92: PL8*630 | E92: 件 | F92: 2 | L92: 314 | M92: 628 | O92: 7.68*0.63*0.01 | P92: 0.0968
A93: 91 | B93: JB-1 | C93: 夹板-1 | D93: PL12*145 | E93: 件 | F93: 280 | L93: 6.1 | M93: 1708 | O93: 0.46*0.15*0.012 | P93: 0.2318
A94: 92 | B94: LCC-1 | C94: 单轨吊斜撑-1 | D94: L75*6 | E94: 件 | F94: 2 | L94: 18.1 | M94: 36.2 | O94: 2.75*0.1*0.1 | P94: 0.0550
A95: 93 | B95: LCC-2 | C95: 单轨吊斜撑-2 | D95: L75*6 | E95: 件 | F95: 2 | L95: 18.1 | M95: 36.2 | O95: 2.75*0.1*0.1 | P95: 0.0550
A96: 94 | B96: LG-1 | C96: 栏杆-1 | D96: PIP50*3 | E96: 件 | F96: 300 | L96: 76.8 | M96: 23040 | O96: 6*1.1*0.05 | P96: 99.0000
A97: 95 | B97: LG-2 | C97: 栏杆-2 | D97: PIP50*3 | E97: 件 | F97: 233 | L97: 75.8 | M97: 17661.4 | O97: 6*1.05*0.05 | P97: 73.3950
A98: 96 | B98: LG-3 | C98: 栏杆-3 | D98: PIP50*3 | E98: 件 | F98: 30 | L98: 78.9 | M98: 2367 | O98: 6*1.2*0.05 | P98: 10.8000
A99: 97 | B99: LJB-1 | C99: 连接板-1 | D99: PL12*145 | E99: 件 | F99: 6 | L99: 5.6 | M99: 33.6 | O99: 0.42*0.15*0.012 | P99: 0.0045
A100: 98 | B100: LJB-2 | C100: 连接板-2 | D100: PL12*115 | E100: 件 | F100: 4 | L100: 3.2 | M100: 12.8 | O100: 0.3*0.12*0.012 | P100: 0.0017
A101: 99 | B101: LJB-3 | C101: 连接板-3 | D101: PL12*115 | E101: 件 | F101: 8 | L101: 2.5 | M101: 20 | O101: 0.23*0.12*0.012 | P101: 0.0026
A102: 100 | B102: LJB-4 | C102: 连接板-4 | D102: PL12*115 | E102: 件 | F102: 4 | L102: 4.9 | M102: 19.6 | O102: 0.45*0.12*0.012 | P102: 0.0026
A103: 101 | B103: LJB-5 | C103: 连接板-5 | D103: PL12*145 | E103: 件 | F103: 4 | L103: 4.3 | M103: 17.2 | O103: 0.32*0.15*0.012 | P103: 0.0023
A104: 102 | B104: LJB-6 | C104: 连接板-6 | D104: PL12*145 | E104: 件 | F104: 31 | L104: 3.7 | M104: 114.7 | O104: 0.27*0.15*0.012 | P104: 0.0151
A105: 103 | B105: LJB-7 | C105: 连接板-7 | D105: PL12*145 | E105: 件 | F105: 2 | L105: 3 | M105: 6 | O105: 0.22*0.15*0.012 | P105: 0.0008
A106: 104 | B106: LT-1 | C106: 拉条-1 | D106: D12 | E106: 件 | F106: 16 | L106: 2.1 | M106: 33.6 | O106: 2.6*0.1*0.1 | P106: 0.4160
A107: 105 | B107: LT-2 | C107: 拉条-2 | D107: D12 | E107: 件 | F107: 32 | L107: 1 | M107: 32 | O107: 1.35*0.012*0.012 | P107: 0.0062
A108: 106 | B108: LT-3 | C108: 拉条-3 | D108: D14 | E108: 件 | F108: 16 | L108: 1.4 | M108: 22.4 | O108: 1.35*0.014*0.014 | P108: 0.0042
A109: 107 | B109: PCC-1 | C109: 平台竖撑-1 | D109: HW125*125*6.5*9 | E109: 件 | F109: 24 | L109: 38.2 | M109: 916.8 | O109: 1.8*0.125*0.125 | P109: 0.6750
A110: 108 | B110: PCC-2 | C110: 平台竖撑-2 | D110: HW125*125*6.5*9 | E110: 件 | F110: 12 | L110: 45.8 | M110: 549.6 | O110: 2.15*0.125*0.125 | P110: 0.4031
A111: 109 | B111: PCC-3 | C111: 平台竖撑-3 | D111: HW125*125*6.5*9 | E111: 件 | F111: 4 | L111: 18.4 | M111: 73.6 | O111: 0.92*0.125*0.125 | P111: 0.0575
A112: 110 | B112: PCC-4 | C112: 平台竖撑-4 | D112: HW125*125*6.5*9 | E112: 件 | F112: 26 | L112: 16.8 | M112: 436.8 | O112: 0.85*0.125*0.125 | P112: 0.3453
A113: 111 | B113: PCC-5 | C113: 平台竖撑-5 | D113: HW125*125*6.5*9 | E113: 件 | F113: 26 | L113: 19.6 | M113: 509.6 | O113: 0.98*0.125*0.125 | P113: 0.3981
A114: 112 | B114: PCC-6 | C114: 平台竖撑-6 | D114: HW125*125*6.5*9 | E114: 件 | F114: 2 | L114: 14.9 | M114: 29.8 | O114: 0.78*0.125*0.125 | P114: 0.0244
A115: 113 | B115: PCC-7 | C115: 平台竖撑-7 | D115: HW125*125*6.5*9 | E115: 件 | F115: 6 | L115: 16.5 | M115: 99 | O115: 0.85*0.125*0.125 | P115: 0.0797
A116: 114 | B116: PCC-8 | C116: 平台竖撑-8 | D116: HW125*125*6.5*9 | E116: 件 | F116: 2 | L116: 15.1 | M116: 30.2 | O116: 0.79*0.125*0.125 | P116: 0.0247
A117: 115 | B117: PCC-9 | C117: 平台竖撑-9 | D117: HW125*125*6.5*9 | E117: 件 | F117: 2 | L117: 14.9 | M117: 29.8 | O117: 0.78*0.125*0.125 | P117: 0.0244
A118: 116 | B118: PCC-10 | C118: 平台竖撑-10 | D118: HW125*125*6.5*9 | E118: 件 | F118: 28 | L118: 19.8 | M118: 554.4 | O118: 0.99*0.125*0.125 | P118: 0.4331
A119: 117 | B119: PCC-11 | C119: 平台竖撑-11 | D119: HW125*125*6.5*9 | E119: 件 | F119: 2 | L119: 40.7 | M119: 81.4 | O119: 1.89*0.125*0.125 | P119: 0.0591
A120: 118 | B120: PCC-12 | C120: 平台竖撑-12 | D120: HW125*125*6.5*9 | E120: 件 | F120: 2 | L120: 46 | M120: 92 | O120: 2.12*0.125*0.125 | P120: 0.0663
A121: 119 | B121: PCC-13 | C121: 平台竖撑-13 | D121: HW125*125*6.5*9 | E121: 件 | F121: 2 | L121: 57 | M121: 114 | O121: 2.6*0.125*0.125 | P121: 0.0813
A122: 120 | B122: PCC-14 | C122: 平台竖撑-14 | D122: HW125*125*6.5*9 | E122: 件 | F122: 1 | L122: 31 | M122: 31 | O122: 1.47*0.125*0.125 | P122: 0.0230
A123: 121 | B123: PCC-15 | C123: 平台竖撑-15 | D123: HW125*125*6.5*9 | E123: 件 | F123: 9 | L123: 28 | M123: 252 | O123: 1.34*0.125*0.125 | P123: 0.1884
A124: 122 | B124: PCC-16 | C124: 平台竖撑-16 | D124: HW125*125*6.5*9 | E124: 件 | F124: 2 | L124: 18.2 | M124: 36.4 | O124: 0.92*0.125*0.125 | P124: 0.0288
A125: 123 | B125: PCC-17 | C125: 平台竖撑-17 | D125: HW125*125*6.5*9 | E125: 件 | F125: 4 | L125: 15.1 | M125: 60.4 | O125: 0.78*0.125*0.125 | P125: 0.0488
A126: 124 | B126: PCC-18 | C126: 平台竖撑-18 | D126: HW125*125*6.5*9 | E126: 件 | F126: 2 | L126: 25.9 | M126: 51.8 | O126: 1.25*0.125*0.125 | P126: 0.0391
A127: 125 | B127: PCC-19 | C127: 平台竖撑-19 | D127: HW125*125*6.5*9 | E127: 件 | F127: 2 | L127: 29.2 | M127: 58.4 | O127: 1.39*0.125*0.125 | P127: 0.0434
A128: 126 | B128: PTL-1 | C128: 平台梁-1 | D128: HM244*175*7*11 | E128: 件 | F128: 2 | L128: 215.8 | M128: 431.6 | O128: 4.39*0.28*0.29 | P128: 0.7129
A129: 127 | B129: PTL-2 | C129: 平台梁-2 | D129: HM244*175*7*11 | E129: 件 | F129: 2 | L129: 215.8 | M129: 431.6 | O129: 4.39*0.28*0.29 | P129: 0.7129
A130: 128 | B130: PTL-3 | C130: 平台梁-3 | D130: HM244*175*7*11 | E130: 件 | F130: 2 | L130: 208.4 | M130: 416.8 | O130: 4.45*0.28*0.29 | P130: 0.7227
A131: 129 | B131: PTL-4 | C131: 平台梁-4 | D131: HM244*175*7*11 | E131: 件 | F131: 2 | L131: 208.4 | M131: 416.8 | O131: 4.45*0.28*0.29 | P131: 0.7227
A132: 130 | B132: PTL-5 | C132: 平台梁-5 | D132: HM244*175*7*11 | E132: 件 | F132: 2 | L132: 263.1 | M132: 526.2 | O132: 5.74*0.28*0.29 | P132: 0.9322
A133: 131 | B133: PTL-6 | C133: 平台梁-6 | D133: HM244*175*7*11 | E133: 件 | F133: 2 | L133: 263.1 | M133: 526.2 | O133: 5.74*0.28*0.29 | P133: 0.9322
A134: 132 | B134: PTL-7 | C134: 平台梁-7 | D134: HM244*175*7*11 | E134: 件 | F134: 4 | L134: 170.1 | M134: 680.4 | O134: 3.65*0.18*0.29 | P134: 0.7621
A135: 133 | B135: PTL-8 | C135: 平台梁-8 | D135: HM244*175*7*11 | E135: 件 | F135: 4 | L135: 116.4 | M135: 465.6 | O135: 2.39*0.18*0.29 | P135: 0.4990
A136: 134 | B136: PTL-9 | C136: 平台梁-9 | D136: HM244*175*7*11 | E136: 件 | F136: 4 | L136: 114.2 | M136: 456.8 | O136: 2.34*0.18*0.29 | P136: 0.4886
A137: 135 | B137: PTL-10 | C137: 平台梁-10 | D137: HM550*300*11*18 | E137: 件 | F137: 1 | L137: 1257.3 | M137: 1257.3 | O137: 8.66*0.45*0.57 | P137: 2.2213
A138: 136 | B138: PTL-11 | C138: 平台梁-11 | D138: HM244*175*7*11 | E138: 件 | F138: 2 | L138: 313 | M138: 626 | O138: 7.28*0.27*0.25 | P138: 0.9828
A139: 137 | B139: PTL-12 | C139: 平台梁-12 | D139: HM244*175*7*11 | E139: 件 | F139: 1 | L139: 315.9 | M139: 315.9 | O139: 7.28*0.27*0.25 | P139: 0.4914
A140: 138 | B140: PTL-13 | C140: 平台梁-13 | D140: HM244*175*7*11 | E140: 件 | F140: 1 | L140: 315.9 | M140: 315.9 | O140: 7.28*0.27*0.25 | P140: 0.4914
A141: 139 | B141: PTL-14 | C141: 平台梁-14 | D141: HM244*175*7*11 | E141: 件 | F141: 1 | L141: 315.9 | M141: 315.9 | O141: 7.28*0.27*0.25 | P141: 0.4914
A142: 140 | B142: PTL-15 | C142: 平台梁-15 | D142: HM244*175*7*11 | E142: 件 | F142: 1 | L142: 315.9 | M142: 315.9 | O142: 7.28*0.27*0.25 | P142: 0.4914
A143: 141 | B143: PTL-16 | C143: 平台梁-16 | D143: HM244*175*7*11 | E143: 件 | F143: 1 | L143: 320.4 | M143: 320.4 | O143: 7.18*0.27*0.25 | P143: 0.4847
A144: 142 | B144: PTL-17 | C144: 平台梁-17 | D144: HM244*175*7*11 | E144: 件 | F144: 1 | L144: 320.4 | M144: 320.4 | O144: 7.18*0.27*0.25 | P144: 0.4847
A145: 143 | B145: PTL-18 | C145: 平台梁-18 | D145: HM244*175*7*11 | E145: 件 | F145: 1 | L145: 320.4 | M145: 320.4 | O145: 7.18*0.27*0.25 | P145: 0.4847
A146: 144 | B146: PTL-19 | C146: 平台梁-19 | D146: HM244*175*7*11 | E146: 件 | F146: 1 | L146: 320.4 | M146: 320.4 | O146: 7.18*0.27*0.25 | P146: 0.4847
A147: 145 | B147: PTL-20 | C147: 平台梁-20 | D147: HM244*175*7*11 | E147: 件 | F147: 1 | L147: 317.5 | M147: 317.5 | O147: 7.18*0.27*0.25 | P147: 0.4847
A148: 146 | B148: PTL-21 | C148: 平台梁-21 | D148: HM244*175*7*11 | E148: 件 | F148: 1 | L148: 317.5 | M148: 317.5 | O148: 7.18*0.27*0.25 | P148: 0.4847
A149: 147 | B149: PTL-22 | C149: 平台梁-22 | D149: HM244*175*7*11 | E149: 件 | F149: 1 | L149: 318.2 | M149: 318.2 | O149: 7.28*0.22*0.25 | P149: 0.4004
A150: 148 | B150: PTL-23 | C150: 平台梁-23 | D150: HM244*175*7*11 | E150: 件 | F150: 1 | L150: 318.2 | M150: 318.2 | O150: 7.28*0.22*0.25 | P150: 0.4004
A151: 149 | B151: PTL-24 | C151: 平台梁-24 | D151: HM244*175*7*11 | E151: 件 | F151: 1 | L151: 318.2 | M151: 318.2 | O151: 7.28*0.22*0.25 | P151: 0.4004
A152: 150 | B152: PTL-25 | C152: 平台梁-25 | D152: HM244*175*7*11 | E152: 件 | F152: 1 | L152: 318.2 | M152: 318.2 | O152: 7.28*0.22*0.25 | P152: 0.4004
A153: 151 | B153: PTL-26 | C153: 平台梁-26 | D153: HM244*175*7*11 | E153: 件 | F153: 1 | L153: 315.3 | M153: =L153*F153 -> 315.3 | O153: 7.28*0.22*0.25 | P153: 0.4004
A154: 152 | B154: PTL-27 | C154: 平台梁-27 | D154: HM244*175*7*11 | E154: 件 | F154: 1 | L154: 315.3 | M154: 315.3 | O154: 7.28*0.22*0.25 | P154: 0.4004
A155: 153 | B155: PTL-28 | C155: 平台梁-28 | D155: HM244*175*7*11 | E155: 件 | F155: 1 | L155: 321.6 | M155: 321.6 | O155: 7.43*0.22*0.25 | P155: 0.4087
A156: 154 | B156: PTL-29 | C156: 平台梁-29 | D156: HM244*175*7*11 | E156: 件 | F156: 1 | L156: 321.6 | M156: 321.6 | O156: 7.43*0.22*0.25 | P156: 0.4087
A157: 155 | B157: PTL-30 | C157: 平台梁-30 | D157: HM244*175*7*11 | E157: 件 | F157: 2 | L157: 198.4 | M157: 396.8 | O157: 4.45*0.28*0.25 | P157: 0.6230
A158: 156 | B158: PTL-31 | C158: 平台梁-31 | D158: HM244*175*7*11 | E158: 件 | F158: 2 | L158: 198.4 | M158: 396.8 | O158: 4.45*0.28*0.25 | P158: 0.6230
A159: 157 | B159: PTL-32 | C159: 平台梁-32 | D159: HM390*300*10*16 | E159: 件 | F159: 8 | L159: 878.4 | M159: 7027.2 | O159: 8.14*0.43*0.34 | P159: 9.5205
A160: 158 | B160: PTL-33 | C160: 平台梁-33 | D160: HM550*300*11*18 | E160: 件 | F160: 1 | L160: 1257.3 | M160: 1257.3 | O160: 8.66*0.45*0.57 | P160: 2.2213
A161: 159 | B161: PTL-34 | C161: 平台梁-34 | D161: HM390*300*10*16 | E161: 件 | F161: 1 | L161: 460.6 | M161: 460.6 | O161: 3.53*0.52*0.41 | P161: 0.7526
A162: 160 | B162: PTL-35 | C162: 平台梁-35 | D162: HM390*300*10*16 | E162: 件 | F162: 1 | L162: 460.6 | M162: 460.6 | O162: 3.53*0.52*0.41 | P162: 0.7526
A163: 161 | B163: PTL-36 | C163: 平台梁-36 | D163: HM390*300*10*16 | E163: 件 | F163: 1 | L163: 452.9 | M163: 452.9 | O163: 3.53*0.52*0.41 | P163: 0.7526
A164: 162 | B164: PTL-37 | C164: 平台梁-37 | D164: HM390*300*10*16 | E164: 件 | F164: 1 | L164: 452.9 | M164: 452.9 | O164: 3.53*0.52*0.41 | P164: 0.7526
A165: 163 | B165: PTL-38 | C165: 平台梁-38 | D165: HM390*300*10*16 | E165: 件 | F165: 1 | L165: 425.3 | M165: 425.3 | O165: 3.53*0.52*0.39 | P165: 0.7159
A166: 164 | B166: PTL-39 | C166: 平台梁-39 | D166: HM390*300*10*16 | E166: 件 | F166: 1 | L166: 425.3 | M166: 425.3 | O166: 3.53*0.52*0.39 | P166: 0.7159
A167: 165 | B167: PTL-40 | C167: 平台梁-40 | D167: HM390*300*10*16 | E167: 件 | F167: 3 | L167: 708.8 | M167: 2126.4 | O167: 6.79*0.3*0.39 | P167: 2.3833
A168: 166 | B168: PTL-41 | C168: 平台梁-41 | D168: HM390*300*10*16 | E168: 件 | F168: 3 | L168: 708.8 | M168: 2126.4 | O168: 6.79*0.3*0.39 | P168: 2.3833
A169: 167 | B169: PTL-42 | C169: 平台梁-42 | D169: HM390*300*10*16 | E169: 件 | F169: 2 | L169: 779.5 | M169: 1559 | O169: 7.01*0.3*0.39 | P169: 1.6403
A170: 168 | B170: PTL-43 | C170: 平台梁-43 | D170: HM390*300*10*16 | E170: 件 | F170: 2 | L170: 779.5 | M170: 1559 | O170: 7.01*0.3*0.39 | P170: 1.6403
A171: 169 | B171: PTL-44 | C171: 平台梁-44 | D171: HM390*300*10*16 | E171: 件 | F171: 1 | L171: 781.9 | M171: 781.9 | O171: 7.01*0.4*0.39 | P171: 1.0936
A172: 170 | B172: PTL-45 | C172: 平台梁-45 | D172: HM390*300*10*16 | E172: 件 | F172: 1 | L172: 781.9 | M172: 781.9 | O172: 7.01*0.4*0.39 | P172: 1.0936
A173: 171 | B173: PTL-46 | C173: 平台梁-46 | D173: HM390*300*10*16 | E173: 件 | F173: 1 | L173: 772.1 | M173: 772.1 | O173: 6.65*0.3*1.07 | P173: 2.1347
A174: 172 | B174: PTL-47 | C174: 平台梁-47 | D174: HM390*300*10*16 | E174: 件 | F174: 1 | L174: 772.1 | M174: 772.1 | O174: 6.65*0.3*1.07 | P174: 2.1347
A175: 173 | B175: PTL-48 | C175: 平台梁-48 | D175: HM390*300*10*16 | E175: 件 | F175: 1 | L175: 752.6 | M175: 752.6 | O175: 6.65*0.3*1.07 | P175: 2.1347
A176: 174 | B176: PTL-49 | C176: 平台梁-49 | D176: HM390*300*10*16 | E176: 件 | F176: 1 | L176: 752.6 | M176: 752.6 | O176: 6.65*0.3*1.07 | P176: 2.1347
A177: 175 | B177: PTL-50 | C177: 平台梁-50 | D177: HM550*300*11*18 | E177: 件 | F177: 1 | L177: 1207.2 | M177: 1207.2 | O177: 8.66*0.41*0.55 | P177: 1.9528
A178: 176 | B178: PTL-51 | C178: 平台梁-51 | D178: HM550*300*11*18 | E178: 件 | F178: 1 | L178: 1207.2 | M178: 1207.2 | O178: 8.66*0.41*0.55 | P178: 1.9528
A179: 177 | B179: PTL-52 | C179: 平台梁-52 | D179: HM390*300*10*16 | E179: 件 | F179: 6 | L179: 148.7 | M179: 892.2 | O179: 1.25*0.51*0.39 | P179: 1.4918
A180: 178 | B180: PTL-53 | C180: 平台梁-53 | D180: HM390*300*10*16 | E180: 件 | F180: 6 | L180: 148.7 | M180: 892.2 | O180: 1.25*0.51*0.39 | P180: 1.4918
A181: 179 | B181: PTL-54 | C181: 平台梁-54 | D181: HM390*300*10*16 | E181: 件 | F181: 8 | L181: 140.6 | M181: 1124.8 | O181: 1.26*0.41*0.39 | P181: 1.6118
A182: 180 | B182: PTL-55 | C182: 平台梁-55 | D182: HM390*300*10*16 | E182: 件 | F182: 2 | L182: 139.8 | M182: 279.6 | O182: 1.26*0.41*0.39 | P182: 0.4029
A183: 181 | B183: PTL-56 | C183: 平台梁-56 | D183: HM390*300*10*16 | E183: 件 | F183: 2 | L183: 139.8 | M183: 279.6 | O183: 1.26*0.41*0.39 | P183: 0.4029
A184: 182 | B184: PTL-57 | C184: 平台梁-57 | D184: HM390*300*10*16 | E184: 件 | F184: 1 | L184: 749.3 | M184: 749.3 | O184: 7.01*0.4*0.39 | P184: 1.0936
A185: 183 | B185: PTL-58 | C185: 平台梁-58 | D185: HM390*300*10*16 | E185: 件 | F185: 1 | L185: 749.3 | M185: 749.3 | O185: 7.01*0.4*0.39 | P185: 1.0936
A186: 184 | B186: PTL-59 | C186: 平台梁-59 | D186: HM390*300*10*16 | E186: 件 | F186: 1 | L186: 749.3 | M186: 749.3 | O186: 7.01*0.4*0.39 | P186: 1.0936
A187: 185 | B187: PTL-60 | C187: 平台梁-60 | D187: HM390*300*10*16 | E187: 件 | F187: 1 | L187: 749.3 | M187: 749.3 | O187: 7.01*0.4*0.39 | P187: 1.0936
A188: 186 | B188: PTL-61 | C188: 平台梁-61 | D188: HM390*300*10*16 | E188: 件 | F188: 1 | L188: 749.3 | M188: 749.3 | O188: 7.01*0.4*0.39 | P188: 1.0936
A189: 187 | B189: PTL-62 | C189: 平台梁-62 | D189: HM390*300*10*16 | E189: 件 | F189: 1 | L189: 749.3 | M189: 749.3 | O189: 7.01*0.4*0.39 | P189: 1.0936
A190: 188 | B190: PTL-63 | C190: 平台梁-63 | D190: HM390*300*10*16 | E190: 件 | F190: 1 | L190: 749.3 | M190: 749.3 | O190: 7.01*0.4*0.39 | P190: 1.0936
A191: 189 | B191: PTL-64 | C191: 平台梁-64 | D191: HM390*300*10*16 | E191: 件 | F191: 1 | L191: 749.3 | M191: 749.3 | O191: 7.01*0.4*0.39 | P191: 1.0936
A192: 190 | B192: PTL-65 | C192: 平台梁-65 | D192: HM390*300*10*16 | E192: 件 | F192: 1 | L192: 750.8 | M192: 750.8 | O192: 7.01*0.4*0.39 | P192: 1.0936
A193: 191 | B193: PTL-66 | C193: 平台梁-66 | D193: HM390*300*10*16 | E193: 件 | F193: 1 | L193: 750.8 | M193: 750.8 | O193: 7.01*0.4*0.39 | P193: 1.0936
A194: 192 | B194: PTL-67 | C194: 平台梁-67 | D194: HM390*300*10*16 | E194: 件 | F194: 1 | L194: 750.8 | M194: 750.8 | O194: 7.01*0.4*0.39 | P194: 1.0936
A195: 193 | B195: PTL-68 | C195: 平台梁-68 | D195: HM390*300*10*16 | E195: 件 | F195: 1 | L195: 750.8 | M195: 750.8 | O195: 7.01*0.4*0.39 | P195: 1.0936
A196: 194 | B196: PTL-69 | C196: 平台梁-69 | D196: HM390*300*10*16 | E196: 件 | F196: 1 | L196: 750.8 | M196: 750.8 | O196: 7.01*0.4*0.39 | P196: 1.0936
A197: 195 | B197: PTL-70 | C197: 平台梁-70 | D197: HM390*300*10*16 | E197: 件 | F197: 1 | L197: 750.8 | M197: 750.8 | O197: 7.01*0.4*0.39 | P197: 1.0936
A198: 196 | B198: PTL-71 | C198: 平台梁-71 | D198: HM390*300*10*16 | E198: 件 | F198: 1 | L198: 750.8 | M198: 750.8 | O198: 7.01*0.4*0.39 | P198: 1.0936
A199: 197 | B199: PTL-72 | C199: 平台梁-72 | D199: HM390*300*10*16 | E199: 件 | F199: 1 | L199: 750.8 | M199: 750.8 | O199: 7.01*0.4*0.39 | P199: 1.0936
A200: 198 | B200: PTL-73 | C200: 平台梁-73 | D200: HM390*300*10*16 | E200: 件 | F200: 1 | L200: 811.5 | M200: 811.5 | O200: 7.01*0.4*0.39 | P200: 1.0936
... 823 more rows
